BODY,BODY NAME,DATE,TRANSACTION NUMBER,THEIR REF,CATEGORY,AMOUNT,SUPPLIER NAME,SUPPLIER CODE,EXPENSE AREA,EXPENSE TYPE,EXPENSE CODE
http://statistics.data.gov.uk/id/local-authority/12UE,Huntingdonshire District Council,12/01/2017,201972,2100107314,6,"12,126.00",Lambeth Communications,CR424137,Chief Executive & Comt,Advertising/Promoting Services,255
http://statistics.data.gov.uk/id/local-authority/12UE,Huntingdonshire District Council,12/01/2017,201618,096-16,6,576,The Assoc Of Democratic Service Officers,CR455382,Chief Executive & Comt,Advertising/Promoting Services,255
http://statistics.data.gov.uk/id/local-authority/12UE,Huntingdonshire District Council,12/01/2017,202726,100376,5,474,Crosby Associates Ltd,CR424163,Countryside,Advertising/Promoting Services,255
http://statistics.data.gov.uk/id/local-authority/12UE,Huntingdonshire District Council,26/01/2017,203378,55805040,5,371.7,Archant Herts & Cambs,CR415764,Domestic Refuse,Advertising/Promoting Services,255
http://statistics.data.gov.uk/id/local-authority/12UE,Huntingdonshire District Council,19/01/2017,203105,16856,5,504,Bigprinting,CR416383,Domestic Refuse,Advertising/Promoting Services,255
http://statistics.data.gov.uk/id/local-authority/12UE,Huntingdonshire District Council,16/01/2017,202981,INV-0313,5,917.88,Expertees Personalised Clothing Ltd,CR424140,One Leisure Corporate Mgt,Advertising/Promoting Services,255
http://statistics.data.gov.uk/id/local-authority/12UE,Huntingdonshire District Council,05/01/2017,201217,82646726,5,46.46,Archant Community Media Ltd,CR452143,One Leisure Huntingdon,Advertising/Promoting Services,255
http://statistics.data.gov.uk/id/local-authority/12UE,Huntingdonshire District Council,12/01/2017,202229,82649219,5,92.93,Archant Community Media Ltd,CR452143,One Leisure Huntingdon,Advertising/Promoting Services,255
http://statistics.data.gov.uk/id/local-authority/12UE,Huntingdonshire District Council,19/01/2017,202493,82649219,5,92.93,Archant Herts & Cambs,CR415764,One Leisure Huntingdon,Advertising/Promoting Services,255
http://statistics.data.gov.uk/id/local-authority/12UE,Huntingdonshire District Council,05/01/2017,201935,INV-0290,5,59.4,Expertees Personalised Clothing Ltd,CR424140,One Leisure Huntingdon,Advertising/Promoting Services,255
http://statistics.data.gov.uk/id/local-authority/12UE,Huntingdonshire District Council,16/01/2017,202981,INV-0313,5,152.98,Expertees Personalised Clothing Ltd,CR424140,One Leisure Huntingdon,Advertising/Promoting Services,255
http://statistics.data.gov.uk/id/local-authority/12UE,Huntingdonshire District Council,05/01/2017,201217,82646726,5,23.24,Archant Community Media Ltd,CR452143,One Leisure Ramsey,Advertising/Promoting Services,255
http://statistics.data.gov.uk/id/local-authority/12UE,Huntingdonshire District Council,12/01/2017,202229,82649219,5,46.45,Archant Community Media Ltd,CR452143,One Leisure Ramsey,Advertising/Promoting Services,255
http://statistics.data.gov.uk/id/local-authority/12UE,Huntingdonshire District Council,19/01/2017,202493,82649219,5,46.46,Archant Herts & Cambs,CR415764,One Leisure Ramsey,Advertising/Promoting Services,255
http://statistics.data.gov.uk/id/local-authority/12UE,Huntingdonshire District Council,05/01/2017,201935,INV-0290,5,59.4,Expertees Personalised Clothing Ltd,CR424140,One Leisure Ramsey,Advertising/Promoting Services,255
http://statistics.data.gov.uk/id/local-authority/12UE,Huntingdonshire District Council,16/01/2017,202981,INV-0313,5,76.5,Expertees Personalised Clothing Ltd,CR424140,One Leisure Ramsey,Advertising/Promoting Services,255
http://statistics.data.gov.uk/id/local-authority/12UE,Huntingdonshire District Council,26/01/2017,203198,RR2017/01/001,5,600,Ramsey & Warboys Reporter,CR422051,One Leisure Ramsey,Advertising/Promoting Services,255
http://statistics.data.gov.uk/id/local-authority/12UE,Huntingdonshire District Council,05/01/2017,201217,82646726,5,23.24,Archant Community Media Ltd,CR452143,One Leisure Sawtry,Advertising/Promoting Services,255
http://statistics.data.gov.uk/id/local-authority/12UE,Huntingdonshire District Council,12/01/2017,202229,82649219,5,46.46,Archant Community Media Ltd,CR452143,One Leisure Sawtry,Advertising/Promoting Services,255
http://statistics.data.gov.uk/id/local-authority/12UE,Huntingdonshire District Council,19/01/2017,202493,82649219,5,46.45,Archant Herts & Cambs,CR415764,One Leisure Sawtry,Advertising/Promoting Services,255
http://statistics.data.gov.uk/id/local-authority/12UE,Huntingdonshire District Council,05/01/2017,201935,INV-0290,5,59.4,Expertees Personalised Clothing Ltd,CR424140,One Leisure Sawtry,Advertising/Promoting Services,255
http://statistics.data.gov.uk/id/local-authority/12UE,Huntingdonshire District Council,16/01/2017,202981,INV-0313,5,76.5,Expertees Personalised Clothing Ltd,CR424140,One Leisure Sawtry,Advertising/Promoting Services,255
http://statistics.data.gov.uk/id/local-authority/12UE,Huntingdonshire District Council,05/01/2017,201217,82646726,5,168.2,Archant Community Media Ltd,CR452143,One Leisure St Ives,Advertising/Promoting Services,255
http://statistics.data.gov.uk/id/local-authority/12UE,Huntingdonshire District Council,12/01/2017,202229,82649219,5,214.67,Archant Community Media Ltd,CR452143,One Leisure St Ives,Advertising/Promoting Services,255
http://statistics.data.gov.uk/id/local-authority/12UE,Huntingdonshire District Council,19/01/2017,202492,82639876,5,371.72,Archant Herts & Cambs,CR415764,One Leisure St Ives,Advertising/Promoting Services,255
http://statistics.data.gov.uk/id/local-authority/12UE,Huntingdonshire District Council,19/01/2017,202493,82649219,5,214.67,Archant Herts & Cambs,CR415764,One Leisure St Ives,Advertising/Promoting Services,255
http://statistics.data.gov.uk/id/local-authority/12UE,Huntingdonshire District Council,05/01/2017,201935,INV-0290,5,59.4,Expertees Personalised Clothing Ltd,CR424140,One Leisure St Ives,Advertising/Promoting Services,255
http://statistics.data.gov.uk/id/local-authority/12UE,Huntingdonshire District Council,16/01/2017,202981,INV-0313,5,152.98,Expertees Personalised Clothing Ltd,CR424140,One Leisure St Ives,Advertising/Promoting Services,255
http://statistics.data.gov.uk/id/local-authority/12UE,Huntingdonshire District Council,05/01/2017,201743,CN-1663,5,-720,Koala Creative Ltd,CR423981,One Leisure St Ives,Advertising/Promoting Services,255
http://statistics.data.gov.uk/id/local-authority/12UE,Huntingdonshire District Council,05/01/2017,201742,INV-1620,5,"3,360.00",Koala Creative Ltd,CR423981,One Leisure St Ives,Advertising/Promoting Services,255
http://statistics.data.gov.uk/id/local-authority/12UE,Huntingdonshire District Council,12/01/2017,202206,INV-1621,5,300,Koala Creative Ltd,CR423981,One Leisure St Ives,Advertising/Promoting Services,255
http://statistics.data.gov.uk/id/local-authority/12UE,Huntingdonshire District Council,05/01/2017,202159,INV-1622,5,255,Koala Creative Ltd,CR423981,One Leisure St Ives,Advertising/Promoting Services,255
http://statistics.data.gov.uk/id/local-authority/12UE,Huntingdonshire District Council,12/01/2017,201963,20962,5,300,Pineneedle Ltd,CR422164,One Leisure St Ives,Advertising/Promoting Services,255
http://statistics.data.gov.uk/id/local-authority/12UE,Huntingdonshire District Council,05/01/2017,201217,82646726,5,46.46,Archant Community Media Ltd,CR452143,One Leisure St Neots,Advertising/Promoting Services,255
http://statistics.data.gov.uk/id/local-authority/12UE,Huntingdonshire District Council,12/01/2017,202229,82649219,5,92.93,Archant Community Media Ltd,CR452143,One Leisure St Neots,Advertising/Promoting Services,255
http://statistics.data.gov.uk/id/local-authority/12UE,Huntingdonshire District Council,19/01/2017,202493,82649219,5,92.93,Archant Herts & Cambs,CR415764,One Leisure St Neots,Advertising/Promoting Services,255
http://statistics.data.gov.uk/id/local-authority/12UE,Huntingdonshire District Council,05/01/2017,201935,INV-0290,5,59.4,Expertees Personalised Clothing Ltd,CR424140,One Leisure St Neots,Advertising/Promoting Services,255
http://statistics.data.gov.uk/id/local-authority/12UE,Huntingdonshire District Council,16/01/2017,202981,INV-0313,5,152.98,Expertees Personalised Clothing Ltd,CR424140,One Leisure St Neots,Advertising/Promoting Services,255
http://statistics.data.gov.uk/id/local-authority/12UE,Huntingdonshire District Council,19/01/2017,606759,250016565,6,"2,300.00",Cabinet Office,CR423129,Chief Executive & Comt,Audit Fees,701
http://statistics.data.gov.uk/id/local-authority/12UE,Huntingdonshire District Council,05/01/2017,200865,B281116,5,"2,986.69",Jacobs,CR422350,Council Tax,Bailiffs,703
http://statistics.data.gov.uk/id/local-authority/12UE,Huntingdonshire District Council,05/01/2017,200858,BN281116,5,285.51,Jacobs,CR422350,Council Tax,Bailiffs,703
http://statistics.data.gov.uk/id/local-authority/12UE,Huntingdonshire District Council,05/01/2017,200858,BN281116,5,129.7,Jacobs,CR422350,N N D R Administration,Bailiffs,703
http://statistics.data.gov.uk/id/local-authority/12UE,Huntingdonshire District Council,12/01/2017,201633,75849,5,146.21,Snackline Direct Ltd,CR478090,One Leisure Sawtry,Bar Provisions,558
http://statistics.data.gov.uk/id/local-authority/12UE,Huntingdonshire District Council,05/01/2017,201970,2102880213,5,173.51,Booker Cash And Carry,CR027611,One Leisure St Ives,Bar Provisions,558
http://statistics.data.gov.uk/id/local-authority/12UE,Huntingdonshire District Council,05/01/2017,201967,2102880796,5,792.11,Booker Cash And Carry,CR027611,One Leisure St Ives,Bar Provisions,558
http://statistics.data.gov.uk/id/local-authority/12UE,Huntingdonshire District Council,12/01/2017,202457,2102897772,5,"2,405.67",Booker Cash And Carry,CR027611,One Leisure St Ives,Bar Provisions,558
http://statistics.data.gov.uk/id/local-authority/12UE,Huntingdonshire District Council,12/01/2017,202181,2102907600,5,"1,947.08",Booker Cash And Carry,CR027611,One Leisure St Ives,Bar Provisions,558
http://statistics.data.gov.uk/id/local-authority/12UE,Huntingdonshire District Council,19/01/2017,203088,2102921881,5,119,Booker Cash And Carry,CR027611,One Leisure St Ives,Bar Provisions,558
http://statistics.data.gov.uk/id/local-authority/12UE,Huntingdonshire District Council,26/01/2017,203092,2102935018,5,372.48,Booker Cash And Carry,CR027611,One Leisure St Ives,Bar Provisions,558
http://statistics.data.gov.uk/id/local-authority/12UE,Huntingdonshire District Council,05/01/2017,201086,641024,5,"1,524.11",Lacons,CR422174,One Leisure St Ives,Bar Provisions,558
http://statistics.data.gov.uk/id/local-authority/12UE,Huntingdonshire District Council,12/01/2017,201213,641153,5,329.39,Lacons,CR422174,One Leisure St Ives,Bar Provisions,558
http://statistics.data.gov.uk/id/local-authority/12UE,Huntingdonshire District Council,12/01/2017,201651,642185,5,486.98,Lacons,CR422174,One Leisure St Ives,Bar Provisions,558
http://statistics.data.gov.uk/id/local-authority/12UE,Huntingdonshire District Council,12/01/2017,202192,643086,5,978.06,Lacons,CR422174,One Leisure St Ives,Bar Provisions,558
http://statistics.data.gov.uk/id/local-authority/12UE,Huntingdonshire District Council,12/01/2017,202193,643187,5,247.38,Lacons,CR422174,One Leisure St Ives,Bar Provisions,558
http://statistics.data.gov.uk/id/local-authority/12UE,Huntingdonshire District Council,05/01/2017,200884,I154707,5,892.66,Oakham Ales,CR422253,One Leisure St Ives,Bar Provisions,558
http://statistics.data.gov.uk/id/local-authority/12UE,Huntingdonshire District Council,12/01/2017,201297,I155312,5,949.5,Oakham Ales,CR422253,One Leisure St Ives,Bar Provisions,558
http://statistics.data.gov.uk/id/local-authority/12UE,Huntingdonshire District Council,12/01/2017,202748,I156730,5,625.58,Oakham Ales,CR422253,One Leisure St Ives,Bar Provisions,558
http://statistics.data.gov.uk/id/local-authority/12UE,Huntingdonshire District Council,19/01/2017,201956,287546,5,184.91,Westminster Foodservice,CR455156,One Leisure St Ives,Bar Provisions,558
http://statistics.data.gov.uk/id/local-authority/12UE,Huntingdonshire District Council,05/01/2017,202265,384/654,,315,Jaz Yorks Ltd,CR160753,Homelessness Management,Bed & Breakfast Payment,818
http://statistics.data.gov.uk/id/local-authority/12UE,Huntingdonshire District Council,05/01/2017,202267,384/655,,385,Jaz Yorks Ltd,CR160753,Homelessness Management,Bed & Breakfast Payment,818
http://statistics.data.gov.uk/id/local-authority/12UE,Huntingdonshire District Council,05/01/2017,202266,384/656,,315,Jaz Yorks Ltd,CR160753,Homelessness Management,Bed & Breakfast Payment,818
http://statistics.data.gov.uk/id/local-authority/12UE,Huntingdonshire District Council,19/01/2017,202993,384/657,,315,Jaz Yorks Ltd,CR160753,Homelessness Management,Bed & Breakfast Payment,818
http://statistics.data.gov.uk/id/local-authority/12UE,Huntingdonshire District Council,19/01/2017,202984,384/658,,385,Jaz Yorks Ltd,CR160753,Homelessness Management,Bed & Breakfast Payment,818
http://statistics.data.gov.uk/id/local-authority/12UE,Huntingdonshire District Council,19/01/2017,202988,384/659,,385,Jaz Yorks Ltd,CR160753,Homelessness Management,Bed & Breakfast Payment,818
http://statistics.data.gov.uk/id/local-authority/12UE,Huntingdonshire District Council,19/01/2017,202983,384/661,,385,Jaz Yorks Ltd,CR160753,Homelessness Management,Bed & Breakfast Payment,818
http://statistics.data.gov.uk/id/local-authority/12UE,Huntingdonshire District Council,19/01/2017,202989,384/662,,385,Jaz Yorks Ltd,CR160753,Homelessness Management,Bed & Breakfast Payment,818
http://statistics.data.gov.uk/id/local-authority/12UE,Huntingdonshire District Council,19/01/2017,203184,384/663,,385,Jaz Yorks Ltd,CR160753,Homelessness Management,Bed & Breakfast Payment,818
http://statistics.data.gov.uk/id/local-authority/12UE,Huntingdonshire District Council,19/01/2017,203183,384/664,,385,Jaz Yorks Ltd,CR160753,Homelessness Management,Bed & Breakfast Payment,818
http://statistics.data.gov.uk/id/local-authority/12UE,Huntingdonshire District Council,12/01/2017,202584,RC-HDC001,5,"1,705.00",Rent Connect Housing Ltd,CR424138,Homelessness Management,Bed & Breakfast Payment,818
http://statistics.data.gov.uk/id/local-authority/12UE,Huntingdonshire District Council,19/01/2017,203178,RC-HDC002,5,"1,425.00",Rent Connect Housing Ltd,CR424138,Homelessness Management,Bed & Breakfast Payment,818
http://statistics.data.gov.uk/id/local-authority/12UE,Huntingdonshire District Council,12/01/2017,202579,44/2016,5,"1,190.00",The Station Hotel,CR453752,Homelessness Management,Bed & Breakfast Payment,818
http://statistics.data.gov.uk/id/local-authority/12UE,Huntingdonshire District Council,26/01/2017,203380,45/2016,5,425,The Station Hotel,CR453752,Homelessness Management,Bed & Breakfast Payment,818
http://statistics.data.gov.uk/id/local-authority/12UE,Huntingdonshire District Council,05/01/2017,202275,EC054,5,"1,980.00",Ukos Projects Ltd,CR423164,Homelessness Management,Bed & Breakfast Payment,818
http://statistics.data.gov.uk/id/local-authority/12UE,Huntingdonshire District Council,12/01/2017,202571,EC055,5,"1,800.00",Ukos Projects Ltd,CR423164,Homelessness Management,Bed & Breakfast Payment,818
http://statistics.data.gov.uk/id/local-authority/12UE,Huntingdonshire District Council,19/01/2017,202982,EC056,5,"2,160.00",Ukos Projects Ltd,CR423164,Homelessness Management,Bed & Breakfast Payment,818
http://statistics.data.gov.uk/id/local-authority/12UE,Huntingdonshire District Council,26/01/2017,203416,RE- EC057,5,"1,740.00",Ukos Projects Ltd,CR423164,Homelessness Management,Bed & Breakfast Payment,818
http://statistics.data.gov.uk/id/local-authority/12UE,Huntingdonshire District Council,12/01/2017,201713,GFL1792HDC,5,"3,030.00",G Ferrara Ltd,CR478949,Bus Shelters,Building Cleaning,440
http://statistics.data.gov.uk/id/local-authority/12UE,Huntingdonshire District Council,26/01/2017,202141,57997,5,366.43,Beebys Limited,CR415822,Bus Stations,Building Cleaning,440
http://statistics.data.gov.uk/id/local-authority/12UE,Huntingdonshire District Council,26/01/2017,203085,INV556575,5,482.99,Ecocleen Services Limited,CR406985,Countryside,Building Cleaning,440
http://statistics.data.gov.uk/id/local-authority/12UE,Huntingdonshire District Council,26/01/2017,203355,30989A,5,"1,349.38",Hi-Spec Facilities Services Plc,CR423413,E F H And Depots,Building Cleaning,440
http://statistics.data.gov.uk/id/local-authority/12UE,Huntingdonshire District Council,26/01/2017,203356,31226A,5,"1,349.38",Hi-Spec Facilities Services Plc,CR423413,E F H And Depots,Building Cleaning,440
http://statistics.data.gov.uk/id/local-authority/12UE,Huntingdonshire District Council,26/01/2017,203355,30989A,5,755.65,Hi-Spec Facilities Services Plc,CR423413,One Leisure Huntingdon,Building Cleaning,440
http://statistics.data.gov.uk/id/local-authority/12UE,Huntingdonshire District Council,26/01/2017,203356,31226A,5,755.65,Hi-Spec Facilities Services Plc,CR423413,One Leisure Huntingdon,Building Cleaning,440
http://statistics.data.gov.uk/id/local-authority/12UE,Huntingdonshire District Council,26/01/2017,203355,30989A,5,593.74,Hi-Spec Facilities Services Plc,CR423413,One Leisure Ramsey,Building Cleaning,440
http://statistics.data.gov.uk/id/local-authority/12UE,Huntingdonshire District Council,26/01/2017,203356,31226A,5,593.74,Hi-Spec Facilities Services Plc,CR423413,One Leisure Ramsey,Building Cleaning,440
http://statistics.data.gov.uk/id/local-authority/12UE,Huntingdonshire District Council,26/01/2017,203355,30989A,5,620.72,Hi-Spec Facilities Services Plc,CR423413,One Leisure Sawtry,Building Cleaning,440
http://statistics.data.gov.uk/id/local-authority/12UE,Huntingdonshire District Council,26/01/2017,203356,31226A,5,620.72,Hi-Spec Facilities Services Plc,CR423413,One Leisure Sawtry,Building Cleaning,440
http://statistics.data.gov.uk/id/local-authority/12UE,Huntingdonshire District Council,26/01/2017,203355,30989A,5,"4,560.91",Hi-Spec Facilities Services Plc,CR423413,One Leisure St Ives,Building Cleaning,440
http://statistics.data.gov.uk/id/local-authority/12UE,Huntingdonshire District Council,26/01/2017,203356,31226A,5,"4,560.91",Hi-Spec Facilities Services Plc,CR423413,One Leisure St Ives,Building Cleaning,440
http://statistics.data.gov.uk/id/local-authority/12UE,Huntingdonshire District Council,26/01/2017,203355,30989A,5,"3,778.27",Hi-Spec Facilities Services Plc,CR423413,Pathfinder House Site,Building Cleaning,440
http://statistics.data.gov.uk/id/local-authority/12UE,Huntingdonshire District Council,26/01/2017,203356,31226A,5,"3,778.27",Hi-Spec Facilities Services Plc,CR423413,Pathfinder House Site,Building Cleaning,440
http://statistics.data.gov.uk/id/local-authority/12UE,Huntingdonshire District Council,05/01/2017,200872,57871,5,"1,174.99",Beebys Limited,CR415822,Public Conveniences,Building Cleaning,440
http://statistics.data.gov.uk/id/local-authority/12UE,Huntingdonshire District Council,26/01/2017,202766,18186,5,720,Warboys Services Ltd,CR000841,Countryside,Building Mtce,303
http://statistics.data.gov.uk/id/local-authority/12UE,Huntingdonshire District Council,12/01/2017,202517,13059,5,509.1,Playfords Ltd,CR479055,Imd Shared Service,Building Mtce,303
http://statistics.data.gov.uk/id/local-authority/12UE,Huntingdonshire District Council,19/01/2017,202969,102066,5,266.96,Menerga Technical Services Ltd,CR033494,Leisure Centres Capital,Building Mtce,303
http://statistics.data.gov.uk/id/local-authority/12UE,Huntingdonshire District Council,19/01/2017,202968,102087,5,761.81,Menerga Technical Services Ltd,CR033494,Leisure Centres Capital,Building Mtce,303
http://statistics.data.gov.uk/id/local-authority/12UE,Huntingdonshire District Council,05/01/2017,202241,68,5,"2,589.60",Roger Hyde Limited,CR409426,Leisure Centres Capital,Building Mtce,303
http://statistics.data.gov.uk/id/local-authority/12UE,Huntingdonshire District Council,05/01/2017,201088,23241,5,476.4,B. S. Graves Electrical Ltd,CR000363,Off Street Parking,Building Mtce,303
http://statistics.data.gov.uk/id/local-authority/12UE,Huntingdonshire District Council,05/01/2017,202235,46843,5,270,Airway Air Conditioning Ltd,CR482347,One Leisure Huntingdon,Building Mtce,303
http://statistics.data.gov.uk/id/local-authority/12UE,Huntingdonshire District Council,05/01/2017,202234,46863,5,302.4,Airway Air Conditioning Ltd,CR482347,One Leisure Huntingdon,Building Mtce,303
http://statistics.data.gov.uk/id/local-authority/12UE,Huntingdonshire District Council,19/01/2017,202227,23318,,762.48,B S Graves Electrical Ltd,CR003146,One Leisure Huntingdon,Building Mtce,303
http://statistics.data.gov.uk/id/local-authority/12UE,Huntingdonshire District Council,19/01/2017,202230,2974,5,420,House Of Play Ltd,CR479346,One Leisure Huntingdon,Building Mtce,303
http://statistics.data.gov.uk/id/local-authority/12UE,Huntingdonshire District Council,05/01/2017,202236,750,5,681.6,Pool Maintenance Ltd,CR422505,One Leisure Huntingdon,Building Mtce,303
http://statistics.data.gov.uk/id/local-authority/12UE,Huntingdonshire District Council,12/01/2017,201654,37551,5,313.4,Caterfix Ltd,CR480775,One Leisure St Ives,Building Mtce,303
http://statistics.data.gov.uk/id/local-authority/12UE,Huntingdonshire District Council,19/01/2017,201974,45529,5,259.2,Coffee Solutions,CR480375,One Leisure St Ives,Building Mtce,303
http://statistics.data.gov.uk/id/local-authority/12UE,Huntingdonshire District Council,12/01/2017,201498,S3087053,5,"1,581.60",First In Service Ltd,CR422285,One Leisure St Ives,Building Mtce,303
http://statistics.data.gov.uk/id/local-authority/12UE,Huntingdonshire District Council,12/01/2017,202509,INV001585,5,492,Lynx Bowling Services,CR455532,One Leisure St Ives,Building Mtce,303
http://statistics.data.gov.uk/id/local-authority/12UE,Huntingdonshire District Council,12/01/2017,202173,13060,5,269.34,Playfords Ltd,CR479055,One Leisure St Ives,Building Mtce,303
http://statistics.data.gov.uk/id/local-authority/12UE,Huntingdonshire District Council,05/01/2017,200699,S3087856,5,463.2,First In Service Ltd,CR422285,One Leisure St Neots,Building Mtce,303
http://statistics.data.gov.uk/id/local-authority/12UE,Huntingdonshire District Council,05/01/2017,201087,122676,5,313.58,R A Baker Glaziers & Merchants Ltd,CR416385,Parks & Open Spaces,Building Mtce,303
http://statistics.data.gov.uk/id/local-authority/12UE,Huntingdonshire District Council,19/01/2017,202971,8976,5,"1,965.60",Wallgate Limited,CR478363,Public Conveniences,Building Mtce,303
http://statistics.data.gov.uk/id/local-authority/12UE,Huntingdonshire District Council,12/01/2017,202687,119469,5,"3,610.33",Cale Briparc Ltd,CR401137,Off Street Parking,Car Park Machines,522
http://statistics.data.gov.uk/id/local-authority/12UE,Huntingdonshire District Council,26/01/2017,202680,15013,5,33.48,Jade Security Services Ltd,CR422256,Countryside,Cash Collection,702
http://statistics.data.gov.uk/id/local-authority/12UE,Huntingdonshire District Council,26/01/2017,202680,15013,5,334.8,Jade Security Services Ltd,CR422256,Interest Received,Cash Collection,702
http://statistics.data.gov.uk/id/local-authority/12UE,Huntingdonshire District Council,26/01/2017,202763,15036,5,"5,102.64",Jade Security Services Ltd,CR422256,Off Street Parking,Cash Collection,702
http://statistics.data.gov.uk/id/local-authority/12UE,Huntingdonshire District Council,26/01/2017,202680,15013,5,267.84,Jade Security Services Ltd,CR422256,One Leisure Huntingdon,Cash Collection,702
http://statistics.data.gov.uk/id/local-authority/12UE,Huntingdonshire District Council,26/01/2017,202680,15013,5,50.22,Jade Security Services Ltd,CR422256,One Leisure Ramsey,Cash Collection,702
http://statistics.data.gov.uk/id/local-authority/12UE,Huntingdonshire District Council,26/01/2017,202680,15013,5,50.22,Jade Security Services Ltd,CR422256,One Leisure Sawtry,Cash Collection,702
http://statistics.data.gov.uk/id/local-authority/12UE,Huntingdonshire District Council,26/01/2017,202680,15013,5,200.88,Jade Security Services Ltd,CR422256,One Leisure St Ives,Cash Collection,702
http://statistics.data.gov.uk/id/local-authority/12UE,Huntingdonshire District Council,26/01/2017,202680,15013,5,401.76,Jade Security Services Ltd,CR422256,One Leisure St Neots,Cash Collection,702
http://statistics.data.gov.uk/id/local-authority/12UE,Huntingdonshire District Council,05/01/2017,202239,SI-387,5,"2,894.40",Abbots Events Catering Ltd,CR424150,One Leisure St Ives,Catering,710
http://statistics.data.gov.uk/id/local-authority/12UE,Huntingdonshire District Council,19/01/2017,202764,102051,5,327.6,Brookes,CR422866,Pathfinder House Site,Catering,710
http://statistics.data.gov.uk/id/local-authority/12UE,Huntingdonshire District Council,05/01/2017,202299,2102879058,5,235.13,Booker Cash And Carry,CR027611,Countryside,Catering Materials,559
http://statistics.data.gov.uk/id/local-authority/12UE,Huntingdonshire District Council,19/01/2017,202632,2102921093,5,311.72,Booker Cash And Carry,CR027611,Countryside,Catering Materials,559
http://statistics.data.gov.uk/id/local-authority/12UE,Huntingdonshire District Council,26/01/2017,203086,2102935325,5,301.11,Booker Cash And Carry,CR027611,Countryside,Catering Materials,559
http://statistics.data.gov.uk/id/local-authority/12UE,Huntingdonshire District Council,26/01/2017,202513,5890871,5,318.94,King Bros,CR411339,Countryside,Catering Materials,559
http://statistics.data.gov.uk/id/local-authority/12UE,Huntingdonshire District Council,05/01/2017,201970,2102880213,5,16.97,Booker Cash And Carry,CR027611,One Leisure St Ives,Catering Materials,559
http://statistics.data.gov.uk/id/local-authority/12UE,Huntingdonshire District Council,05/01/2017,201967,2102880796,5,50.84,Booker Cash And Carry,CR027611,One Leisure St Ives,Catering Materials,559
http://statistics.data.gov.uk/id/local-authority/12UE,Huntingdonshire District Council,12/01/2017,202457,2102897772,5,312.43,Booker Cash And Carry,CR027611,One Leisure St Ives,Catering Materials,559
http://statistics.data.gov.uk/id/local-authority/12UE,Huntingdonshire District Council,12/01/2017,202181,2102907600,5,284.26,Booker Cash And Carry,CR027611,One Leisure St Ives,Catering Materials,559
http://statistics.data.gov.uk/id/local-authority/12UE,Huntingdonshire District Council,19/01/2017,203088,2102921881,5,10.65,Booker Cash And Carry,CR027611,One Leisure St Ives,Catering Materials,559
http://statistics.data.gov.uk/id/local-authority/12UE,Huntingdonshire District Council,26/01/2017,203092,2102935018,5,227.68,Booker Cash And Carry,CR027611,One Leisure St Ives,Catering Materials,559
http://statistics.data.gov.uk/id/local-authority/12UE,Huntingdonshire District Council,12/01/2017,202220,270354,5,377.4,South Lincs Food Service,CR033415,One Leisure St Ives,Catering Materials,559
http://statistics.data.gov.uk/id/local-authority/12UE,Huntingdonshire District Council,19/01/2017,201956,287546,5,191.32,Westminster Foodservice,CR455156,One Leisure St Ives,Catering Materials,559
http://statistics.data.gov.uk/id/local-authority/12UE,Huntingdonshire District Council,05/01/2017,201661,38SI 3837912,5,851.02,Brenntag Uk Ltd,CR015017,One Leisure Huntingdon,Chemicals,551
http://statistics.data.gov.uk/id/local-authority/12UE,Huntingdonshire District Council,19/01/2017,202225,38SI3838849,5,431.28,Brenntag Uk Ltd,CR015017,One Leisure Huntingdon,Chemicals,551
http://statistics.data.gov.uk/id/local-authority/12UE,Huntingdonshire District Council,19/01/2017,200723,38SI 3837780,5,574.71,Brenntag Uk Ltd,CR015017,One Leisure Ramsey,Chemicals,551
http://statistics.data.gov.uk/id/local-authority/12UE,Huntingdonshire District Council,19/01/2017,202194,38SI 3838848,5,664.84,Brenntag Uk Ltd,CR015017,One Leisure St Neots,Chemicals,551
http://statistics.data.gov.uk/id/local-authority/12UE,Huntingdonshire District Council,12/01/2017,201299,160914,5,383.32,Chemaide Limited,CR416597,One Leisure Huntingdon,Cleaning Materials,443
http://statistics.data.gov.uk/id/local-authority/12UE,Huntingdonshire District Council,05/01/2017,201235,4280280,1,392.06,Espo,CR006566,One Leisure Huntingdon,Cleaning Materials,443
http://statistics.data.gov.uk/id/local-authority/12UE,Huntingdonshire District Council,12/01/2017,202457,2102897772,5,22.28,Booker Cash And Carry,CR027611,One Leisure St Ives,Cleaning Materials,443
http://statistics.data.gov.uk/id/local-authority/12UE,Huntingdonshire District Council,12/01/2017,201307,160913,5,282.82,Chemaide Limited,CR416597,One Leisure St Ives,Cleaning Materials,443
http://statistics.data.gov.uk/id/local-authority/12UE,Huntingdonshire District Council,12/01/2017,201937,60887,5,306.48,Maskearaid Ltd,CR033423,One Leisure St Ives,Cleaning Materials,443
http://statistics.data.gov.uk/id/local-authority/12UE,Huntingdonshire District Council,05/01/2017,201219,60809,5,362.84,Maskearaid Ltd,CR033423,One Leisure St Neots,Cleaning Materials,443
http://statistics.data.gov.uk/id/local-authority/12UE,Huntingdonshire District Council,19/01/2017,202729,193215,5,"63,552.00",Cambridge City Council,CR017896,Central Services M Us,Client Contracts,779
http://statistics.data.gov.uk/id/local-authority/12UE,Huntingdonshire District Council,12/01/2017,201633,75849,5,423.35,Snackline Direct Ltd,CR478090,One Leisure Sawtry,Confectionery,572
http://statistics.data.gov.uk/id/local-authority/12UE,Huntingdonshire District Council,12/01/2017,202457,2102897772,5,89.84,Booker Cash And Carry,CR027611,One Leisure St Ives,Confectionery,572
http://statistics.data.gov.uk/id/local-authority/12UE,Huntingdonshire District Council,19/01/2017,203088,2102921881,5,431.92,Booker Cash And Carry,CR027611,One Leisure St Ives,Confectionery,572
http://statistics.data.gov.uk/id/local-authority/12UE,Huntingdonshire District Council,26/01/2017,203092,2102935018,5,93.24,Booker Cash And Carry,CR027611,One Leisure St Ives,Confectionery,572
http://statistics.data.gov.uk/id/local-authority/12UE,Huntingdonshire District Council,12/01/2017,202505,254197,,354,Aylesbury Vale District Council,CR424155,Chief Executive & Comt,Conferences,137
http://statistics.data.gov.uk/id/local-authority/12UE,Huntingdonshire District Council,05/01/2017,201513,10709119,5,"1,350.22",Cambridgeshire County Council,CR006678,Chief Executive & Comt,Consultants,711
http://statistics.data.gov.uk/id/local-authority/12UE,Huntingdonshire District Council,26/01/2017,203377,1007133912,5,"4,620.00",Hays,CR423917,Chief Executive & Comt,Consultants,711
http://statistics.data.gov.uk/id/local-authority/12UE,Huntingdonshire District Council,19/01/2017,202494,1007157534,5,"4,620.00",Hays,CR423917,Chief Executive & Comt,Consultants,711
http://statistics.data.gov.uk/id/local-authority/12UE,Huntingdonshire District Council,19/01/2017,202154,1007171375,5,"4,620.00",Hays,CR423917,Chief Executive & Comt,Consultants,711
http://statistics.data.gov.uk/id/local-authority/12UE,Huntingdonshire District Council,12/01/2017,201492,1111403952,5,"35,154.36",Deloitte Llp,CR400573,Dc Application Processing,Consultants,711
http://statistics.data.gov.uk/id/local-authority/12UE,Huntingdonshire District Council,12/01/2017,202728,AGF1504,5,"10,800.00",Arlingclose,CR478136,Financial Services Mus,Consultants,711
http://statistics.data.gov.uk/id/local-authority/12UE,Huntingdonshire District Council,05/01/2017,202268,HDC 2017-01,5,528,Kelsall Consultancy Ltd,CR422497,Housing Strategy,Consultants,711
http://statistics.data.gov.uk/id/local-authority/12UE,Huntingdonshire District Council,27/01/2017,202965,LTHR34,,"2,100.00",Willow Hr Limited,CR422016,Human Resources,Consultants,711
http://statistics.data.gov.uk/id/local-authority/12UE,Huntingdonshire District Council,12/01/2017,201983,INV-0015,,"3,600.00",Protocol Policy Systems Ltd,CR424108,Imd Shared Service,Consultants,711
http://statistics.data.gov.uk/id/local-authority/12UE,Huntingdonshire District Council,05/01/2017,202264,NP00002372,,"12,000.00",Nexus Planning Limited,CR423481,Local Development Framework,Consultants,711
http://statistics.data.gov.uk/id/local-authority/12UE,Huntingdonshire District Council,05/01/2017,202297,3890,5,"1,440.00",The Information Lab,CR423551,Network Services,Consultants,711
http://statistics.data.gov.uk/id/local-authority/12UE,Huntingdonshire District Council,19/01/2017,600684,1376526,6,"10,000.00",Norfolk County Council. Dept Of Finance,CR413331,Chief Executive & Comt,Contribution (Paid Out),810
http://statistics.data.gov.uk/id/local-authority/12UE,Huntingdonshire District Council,05/01/2017,202246,864,5,"1,924.63",Hact,CR455657,Concessionary Fares,Contribution (Paid Out),810
http://statistics.data.gov.uk/id/local-authority/12UE,Huntingdonshire District Council,19/01/2017,201986,4776,5,"5,000.00",Cambridgeshire & Peterborough Fire Authority,CR405440,Emergency Planning,Contribution (Paid Out),810
http://statistics.data.gov.uk/id/local-authority/12UE,Huntingdonshire District Council,05/01/2017,202300,41088,5,"77,173.96",Cbre Richard Ellis Ltd,CR487227,Off Street Parking,Contribution (Paid Out),810
http://statistics.data.gov.uk/id/local-authority/12UE,Huntingdonshire District Council,12/01/2017,202769,WAITROSE CP,5,"14,750.00",Waitrose,CR019599,Off Street Parking,Contribution (Paid Out),810
http://statistics.data.gov.uk/id/local-authority/12UE,Huntingdonshire District Council,12/01/2017,202769,WAITROSE CP,5,"28,250.00",Waitrose,CR019599,Off Street Parking,Contribution (Paid Out),810
http://statistics.data.gov.uk/id/local-authority/12UE,Huntingdonshire District Council,12/01/2017,606461,0603563FUL,1,"5,000.00",Kimbolton & Stonely Parish Council,CR000473,S106 Agreements,Contribution (Paid Out),810
http://statistics.data.gov.uk/id/local-authority/12UE,Huntingdonshire District Council,24/01/2017,201243,GRANT,5,"4,790.00",Nene Valley Railway Ltd,CR424125,S106 Agreements,Contribution (Paid Out),810
http://statistics.data.gov.uk/id/local-authority/12UE,Huntingdonshire District Council,26/01/2017,203476,876,5,"12,500.00",Hact,CR455657,Transportation Mgt,Contribution (Paid Out),810
http://statistics.data.gov.uk/id/local-authority/12UE,Huntingdonshire District Council,26/01/2017,202486,6800359521,5,667.75,Thomson Reuters,CR412314,Licences,Corporate Subscriptions,754
http://statistics.data.gov.uk/id/local-authority/12UE,Huntingdonshire District Council,26/01/2017,202486,6800359521,5,"1,040.17",Thomson Reuters,CR412314,Nuisances,Corporate Subscriptions,754
http://statistics.data.gov.uk/id/local-authority/12UE,Huntingdonshire District Council,12/01/2017,201517,50081601,5,"1,241.00",Haymarket Media Group Ltd,CR479500,Planning M U'S,Corporate Subscriptions,754
http://statistics.data.gov.uk/id/local-authority/12UE,Huntingdonshire District Council,26/01/2017,202486,6800359521,5,"1,386.88",Thomson Reuters,CR412314,Private Sector Housing,Corporate Subscriptions,754
http://statistics.data.gov.uk/id/local-authority/12UE,Huntingdonshire District Council,26/01/2017,203336,AMC1264,5,387.6,Association Of Drainage Authorities,CR400829,Watercourses,Corporate Subscriptions,754
http://statistics.data.gov.uk/id/local-authority/12UE,Huntingdonshire District Council,05/01/2017,201606,105188,5,294,Barton Petroleum,CR409205,Domestic Refuse,Diesel,615
http://statistics.data.gov.uk/id/local-authority/12UE,Huntingdonshire District Council,05/01/2017,201606,105188,5,126,Barton Petroleum,CR409205,Recycling,Diesel,615
http://statistics.data.gov.uk/id/local-authority/12UE,Huntingdonshire District Council,12/01/2017,202556,011458902300//,5,368.59,E-On Energy,CR416430,Bus Shelters,Electricity,420
http://statistics.data.gov.uk/id/local-authority/12UE,Huntingdonshire District Council,12/01/2017,202557,011398240710//,5,"1,228.69",E-On Energy,CR416430,Cctv Shared Service,Electricity,420
http://statistics.data.gov.uk/id/local-authority/12UE,Huntingdonshire District Council,12/01/2017,202144,941403266,5,272.17,Swalec,CR407130,Countryside,Electricity,420
http://statistics.data.gov.uk/id/local-authority/12UE,Huntingdonshire District Council,12/01/2017,202143,941403268,5,753.2,Swalec,CR407130,Countryside,Electricity,420
http://statistics.data.gov.uk/id/local-authority/12UE,Huntingdonshire District Council,19/01/2017,202539,65924,5,"5,626.18",Haven Power Ltd,CR455940,E F H And Depots,Electricity,420
http://statistics.data.gov.uk/id/local-authority/12UE,Huntingdonshire District Council,19/01/2017,202930,481686634,5,"3,158.35",Swalec,CR407130,Housing Services Other,Electricity,420
http://statistics.data.gov.uk/id/local-authority/12UE,Huntingdonshire District Council,12/01/2017,202675,011398241360//,5,307.02,E-On Energy,CR416430,Off Street Parking,Electricity,420
http://statistics.data.gov.uk/id/local-authority/12UE,Huntingdonshire District Council,12/01/2017,202472,491225588,5,504.96,Swalec,CR407130,Off Street Parking,Electricity,420
http://statistics.data.gov.uk/id/local-authority/12UE,Huntingdonshire District Council,19/01/2017,202541,65916,5,"4,606.62",Haven Power Ltd,CR455940,One Leisure Huntingdon,Electricity,420
http://statistics.data.gov.uk/id/local-authority/12UE,Huntingdonshire District Council,19/01/2017,202933,OL HDON WET,5,"2,795.10",Swalec,CR407130,One Leisure Huntingdon,Electricity,420
http://statistics.data.gov.uk/id/local-authority/12UE,Huntingdonshire District Council,19/01/2017,202934,151678759,5,"3,195.70",Swalec,CR407130,One Leisure Ramsey,Electricity,420
http://statistics.data.gov.uk/id/local-authority/12UE,Huntingdonshire District Council,19/01/2017,202931,211687030,5,"3,993.13",Swalec,CR407130,One Leisure Sawtry,Electricity,420
http://statistics.data.gov.uk/id/local-authority/12UE,Huntingdonshire District Council,19/01/2017,202534,65919,5,"8,301.80",Haven Power Ltd,CR455940,One Leisure St Ives,Electricity,420
http://statistics.data.gov.uk/id/local-authority/12UE,Huntingdonshire District Council,19/01/2017,202538,65922,5,"3,700.25",Haven Power Ltd,CR455940,One Leisure St Ives,Electricity,420
http://statistics.data.gov.uk/id/local-authority/12UE,Huntingdonshire District Council,19/01/2017,202542,65914,5,"8,623.43",Haven Power Ltd,CR455940,One Leisure St Neots,Electricity,420
http://statistics.data.gov.uk/id/local-authority/12UE,Huntingdonshire District Council,19/01/2017,202932,501680153,5,265.86,Swalec,CR407130,Parks & Open Spaces,Electricity,420
http://statistics.data.gov.uk/id/local-authority/12UE,Huntingdonshire District Council,19/01/2017,202540,65912,5,"10,027.66",Haven Power Ltd,CR455940,Pathfinder House Site,Electricity,420
http://statistics.data.gov.uk/id/local-authority/12UE,Huntingdonshire District Council,26/01/2017,202731,688840,5,574.8,Callcredit Ltd,CR455548,Council Tax,Enquiries,723
http://statistics.data.gov.uk/id/local-authority/12UE,Huntingdonshire District Council,26/01/2017,202731,688840,5,81.6,Callcredit Ltd,CR455548,Financial Services Mus,Enquiries,723
http://statistics.data.gov.uk/id/local-authority/12UE,Huntingdonshire District Council,26/01/2017,202731,688840,5,49.2,Callcredit Ltd,CR455548,Housing  Benefits Admin,Enquiries,723
http://statistics.data.gov.uk/id/local-authority/12UE,Huntingdonshire District Council,26/01/2017,202731,688840,5,172.8,Callcredit Ltd,CR455548,Revenue Services Mus,Enquiries,723
http://statistics.data.gov.uk/id/local-authority/12UE,Huntingdonshire District Council,19/01/2017,202970,INV-0012,,390,K D Theatre Productions Ltd,CR424109,One Leisure St Ives,Entertainments Inc Cable Tv,744
http://statistics.data.gov.uk/id/local-authority/12UE,Huntingdonshire District Council,05/01/2017,201994,31-Dec-16,5,"1,600.00",Mr P Watson,CR424144,One Leisure St Ives,Entertainments Inc Cable Tv,744
http://statistics.data.gov.uk/id/local-authority/12UE,Huntingdonshire District Council,19/01/2017,203076,9715,5,180,Roger Wilson Electronics,CR028041,One Leisure St Ives,Entertainments Inc Cable Tv,744
http://statistics.data.gov.uk/id/local-authority/12UE,Huntingdonshire District Council,12/01/2017,200686,8319,5,"1,080.00",Starlite Roadshow,CR024127,One Leisure St Ives,Entertainments Inc Cable Tv,744
http://statistics.data.gov.uk/id/local-authority/12UE,Huntingdonshire District Council,19/01/2017,203078,8324,5,600,Starlite Roadshow,CR024127,One Leisure St Ives,Entertainments Inc Cable Tv,744
http://statistics.data.gov.uk/id/local-authority/12UE,Huntingdonshire District Council,19/01/2017,203077,8325,5,400.79,Starlite Roadshow,CR024127,One Leisure St Ives,Entertainments Inc Cable Tv,744
http://statistics.data.gov.uk/id/local-authority/12UE,Huntingdonshire District Council,19/01/2017,203079,BURGESS,5,"3,533.02",Starlite Roadshow,CR024127,One Leisure St Ives,Entertainments Inc Cable Tv,744
http://statistics.data.gov.uk/id/local-authority/12UE,Huntingdonshire District Council,20/01/2017,203346,THE BIG EASY,5,"1,150.00",The Big Easy C/O J Scully,CR424596,One Leisure St Ives,Entertainments Inc Cable Tv,744
http://statistics.data.gov.uk/id/local-authority/12UE,Huntingdonshire District Council,05/01/2017,201315,18919,5,"1,109.40",Mcintyre Leisure,CR404059,Leisure Centres Capital,Equipment,500
http://statistics.data.gov.uk/id/local-authority/12UE,Huntingdonshire District Council,05/01/2017,201235,4280280,1,86.64,Espo,CR006566,One Leisure Huntingdon,Equipment,500
http://statistics.data.gov.uk/id/local-authority/12UE,Huntingdonshire District Council,05/01/2017,200918,829851,5,500.56,J P Lennard Ltd,CR028595,One Leisure Huntingdon,Equipment,500
http://statistics.data.gov.uk/id/local-authority/12UE,Huntingdonshire District Council,05/01/2017,200922,1128111020,5,323.75,Konica Minolta,CR478866,One Leisure Ramsey,Equipment,500
http://statistics.data.gov.uk/id/local-authority/12UE,Huntingdonshire District Council,12/01/2017,201665,1128287310,5,706.54,Konica Minolta,CR478866,One Leisure St Ives,Equipment,500
http://statistics.data.gov.uk/id/local-authority/12UE,Huntingdonshire District Council,12/01/2017,202510,9714,5,"1,608.00",Roger Wilson Electronics,CR028041,One Leisure St Ives,Equipment,500
http://statistics.data.gov.uk/id/local-authority/12UE,Huntingdonshire District Council,19/01/2017,203076,9715,5,421.87,Roger Wilson Electronics,CR028041,One Leisure St Ives,Equipment,500
http://statistics.data.gov.uk/id/local-authority/12UE,Huntingdonshire District Council,12/01/2017,202720,0862ZP,5,300,J Scarrott,CR424168,Markets,Equipment Hire,507
http://statistics.data.gov.uk/id/local-authority/12UE,Huntingdonshire District Council,05/01/2017,201942,3280340,5,534,Angel Springs Ltd,CR423581,One Leisure St Ives,Equipment Hire,507
http://statistics.data.gov.uk/id/local-authority/12UE,Huntingdonshire District Council,19/01/2017,203076,9715,5,264,Roger Wilson Electronics,CR028041,One Leisure St Ives,Equipment Hire,507
http://statistics.data.gov.uk/id/local-authority/12UE,Huntingdonshire District Council,12/01/2017,200686,8319,5,50,Starlite Roadshow,CR024127,One Leisure St Ives,Equipment Hire,507
http://statistics.data.gov.uk/id/local-authority/12UE,Huntingdonshire District Council,19/01/2017,203077,8325,5,152,Starlite Roadshow,CR024127,One Leisure St Ives,Equipment Hire,507
http://statistics.data.gov.uk/id/local-authority/12UE,Huntingdonshire District Council,05/01/2017,201215,64475463,5,675.77,Phs Group Ltd,CR032018,One Leisure St Neots,Equipment Hire,507
http://statistics.data.gov.uk/id/local-authority/12UE,Huntingdonshire District Council,26/01/2017,203494,4300,5,547.2,Access Hire And Hydraulics,CR422526,Cctv Shared Service,Equipment Maintenance,511
http://statistics.data.gov.uk/id/local-authority/12UE,Huntingdonshire District Council,12/01/2017,202631,SIN019949,5,602,Fenland Leisure Products Ltd,CR478560,Countryside,Equipment Maintenance,511
http://statistics.data.gov.uk/id/local-authority/12UE,Huntingdonshire District Council,12/01/2017,202679,9161928,5,"1,881.00",Canon Uk Ltd,CR409013,Document Centre,Equipment Maintenance,511
http://statistics.data.gov.uk/id/local-authority/12UE,Huntingdonshire District Council,12/01/2017,202153,1128234146,5,"1,773.22",Konica Minolta,CR478866,Document Centre,Equipment Maintenance,511
http://statistics.data.gov.uk/id/local-authority/12UE,Huntingdonshire District Council,12/01/2017,201730,16120072,5,"21,356.40",Freedom Communications Uk Ltd,CR478774,Imd Shared Service,Equipment Maintenance,511
http://statistics.data.gov.uk/id/local-authority/12UE,Huntingdonshire District Council,05/01/2017,201473,PSINV01782694,5,"48,859.68",Kelway (Uk) Ltd,CR004345,Imd Shared Service,Equipment Maintenance,511
http://statistics.data.gov.uk/id/local-authority/12UE,Huntingdonshire District Council,19/01/2017,202260,121772,5,718.8,Twofold Consulting,CR453929,Imd Shared Service,Equipment Maintenance,511
http://statistics.data.gov.uk/id/local-authority/12UE,Huntingdonshire District Council,19/01/2017,202692,GM14705,5,36,Garner Medical Ltd,CR003972,Off Street Parking,Equipment Maintenance,511
http://statistics.data.gov.uk/id/local-authority/12UE,Huntingdonshire District Council,05/01/2017,201078,GM14650,5,358.73,Garner Medical Ltd,CR003972,One Leisure Huntingdon,Equipment Maintenance,511
http://statistics.data.gov.uk/id/local-authority/12UE,Huntingdonshire District Council,19/01/2017,202495,17000004,5,558.58,Technogym Uk Ltd,CR033037,One Leisure Huntingdon,Equipment Maintenance,511
http://statistics.data.gov.uk/id/local-authority/12UE,Huntingdonshire District Council,19/01/2017,202496,17000013,5,710.68,Technogym Uk Ltd,CR033037,One Leisure Huntingdon,Equipment Maintenance,511
http://statistics.data.gov.uk/id/local-authority/12UE,Huntingdonshire District Council,26/01/2017,202958,17000306,5,848.65,Technogym Uk Ltd,CR033037,One Leisure Huntingdon,Equipment Maintenance,511
http://statistics.data.gov.uk/id/local-authority/12UE,Huntingdonshire District Council,05/01/2017,201084,45420,5,317.2,Coffee Solutions,CR480375,One Leisure St Ives,Equipment Maintenance,511
http://statistics.data.gov.uk/id/local-authority/12UE,Huntingdonshire District Council,05/01/2017,201075,GM14643,5,344.4,Garner Medical Ltd,CR003972,One Leisure St Ives,Equipment Maintenance,511
http://statistics.data.gov.uk/id/local-authority/12UE,Huntingdonshire District Council,05/01/2017,201170,2810,5,306.29,Gym Upholstery Uk,CR424035,One Leisure St Ives,Equipment Maintenance,511
http://statistics.data.gov.uk/id/local-authority/12UE,Huntingdonshire District Council,12/01/2017,202509,INV001585,5,"1,250.00",Lynx Bowling Services,CR455532,One Leisure St Ives,Equipment Maintenance,511
http://statistics.data.gov.uk/id/local-authority/12UE,Huntingdonshire District Council,12/01/2017,201672,1580,5,585.6,South East Sport Services,CR479901,One Leisure St Ives,Equipment Maintenance,511
http://statistics.data.gov.uk/id/local-authority/12UE,Huntingdonshire District Council,12/01/2017,201482,GM14671,5,293.76,Garner Medical Ltd,CR003972,One Leisure St Neots,Equipment Maintenance,511
http://statistics.data.gov.uk/id/local-authority/12UE,Huntingdonshire District Council,26/01/2017,202750,18184,5,502.98,Warboys Services Ltd,CR000841,One Leisure St Neots,Equipment Maintenance,511
http://statistics.data.gov.uk/id/local-authority/12UE,Huntingdonshire District Council,19/01/2017,202692,GM14705,5,367.92,Garner Medical Ltd,CR003972,Pathfinder House Site,Equipment Maintenance,511
http://statistics.data.gov.uk/id/local-authority/12UE,Huntingdonshire District Council,12/01/2017,202597,135992,5,690,G Webb,CR424056,Grounds Maintenance,"Fertilizer,Compost,Bark",557
http://statistics.data.gov.uk/id/local-authority/12UE,Huntingdonshire District Council,26/01/2017,202458,7080598434,5,640.88,Honeywell Novar Systems,CR406826,One Leisure St Ives,Fire & Security,450
http://statistics.data.gov.uk/id/local-authority/12UE,Huntingdonshire District Council,12/01/2017,201964,60180496/522256,5,809,Central England Co-Operative Ltd,CR401059,Burials Under Health Acts,Funerals And Graves,717
http://statistics.data.gov.uk/id/local-authority/12UE,Huntingdonshire District Council,19/01/2017,202665,12489089940,5,604.37,E-On Energy,CR416430,E F H And Depots,Gas,421
http://statistics.data.gov.uk/id/local-authority/12UE,Huntingdonshire District Council,19/01/2017,202671,12489088110,5,"2,953.96",E-On Energy,CR416430,One Leisure Huntingdon,Gas,421
http://statistics.data.gov.uk/id/local-authority/12UE,Huntingdonshire District Council,19/01/2017,202666,12489088970,5,706.3,E-On Energy,CR416430,One Leisure Huntingdon,Gas,421
http://statistics.data.gov.uk/id/local-authority/12UE,Huntingdonshire District Council,19/01/2017,202673,12489090790,5,"1,588.40",E-On Energy,CR416430,One Leisure Ramsey,Gas,421
http://statistics.data.gov.uk/id/local-authority/12UE,Huntingdonshire District Council,19/01/2017,202667,12489088700,5,"1,438.62",E-On Energy,CR416430,One Leisure Sawtry,Gas,421
http://statistics.data.gov.uk/id/local-authority/12UE,Huntingdonshire District Council,19/01/2017,202668,12489089510,5,715.88,E-On Energy,CR416430,One Leisure St Ives,Gas,421
http://statistics.data.gov.uk/id/local-authority/12UE,Huntingdonshire District Council,19/01/2017,202672,12489090950,5,"5,025.98",E-On Energy,CR416430,One Leisure St Ives,Gas,421
http://statistics.data.gov.uk/id/local-authority/12UE,Huntingdonshire District Council,19/01/2017,202670,12489088380,5,"3,486.80",E-On Energy,CR416430,One Leisure St Neots,Gas,421
http://statistics.data.gov.uk/id/local-authority/12UE,Huntingdonshire District Council,19/01/2017,202669,12489088540,5,412.92,E-On Energy,CR416430,One Leisure St Neots,Gas,421
http://statistics.data.gov.uk/id/local-authority/12UE,Huntingdonshire District Council,19/01/2017,202674,13313569100,5,"2,102.81",E-On Energy,CR416430,Pathfinder House Site,Gas,421
http://statistics.data.gov.uk/id/local-authority/12UE,Huntingdonshire District Council,05/01/2017,201086,641024,5,37.04,Lacons,CR422174,One Leisure St Ives,Gas Cylinders (Incl. Bars),567
http://statistics.data.gov.uk/id/local-authority/12UE,Huntingdonshire District Council,12/01/2017,201213,641153,5,18.81,Lacons,CR422174,One Leisure St Ives,Gas Cylinders (Incl. Bars),567
http://statistics.data.gov.uk/id/local-authority/12UE,Huntingdonshire District Council,12/01/2017,201651,642185,5,37.05,Lacons,CR422174,One Leisure St Ives,Gas Cylinders (Incl. Bars),567
http://statistics.data.gov.uk/id/local-authority/12UE,Huntingdonshire District Council,12/01/2017,202193,643187,5,18.23,Lacons,CR422174,One Leisure St Ives,Gas Cylinders (Incl. Bars),567
http://statistics.data.gov.uk/id/local-authority/12UE,Huntingdonshire District Council,26/01/2017,202319,INV1733297,5,263.57,Interaction Recruitment Plc,CR007892,Cctv Shared Service,Hired Staff,100
http://statistics.data.gov.uk/id/local-authority/12UE,Huntingdonshire District Council,19/01/2017,202459,4000004305,5,485,1st Choice Recruitment,CR416849,Domestic Refuse,Hired Staff,100
http://statistics.data.gov.uk/id/local-authority/12UE,Huntingdonshire District Council,19/01/2017,202602,IN0565925,5,"2,124.59",Staffline Group,CR416827,Domestic Refuse,Hired Staff,100
http://statistics.data.gov.uk/id/local-authority/12UE,Huntingdonshire District Council,19/01/2017,202595,IN0565926,5,"3,485.40",Staffline Group,CR416827,Domestic Refuse,Hired Staff,100
http://statistics.data.gov.uk/id/local-authority/12UE,Huntingdonshire District Council,19/01/2017,202603,IN0568156,5,"3,177.59",Staffline Group,CR416827,Domestic Refuse,Hired Staff,100
http://statistics.data.gov.uk/id/local-authority/12UE,Huntingdonshire District Council,19/01/2017,202596,IN0568157,5,"2,805.00",Staffline Group,CR416827,Domestic Refuse,Hired Staff,100
http://statistics.data.gov.uk/id/local-authority/12UE,Huntingdonshire District Council,05/01/2017,201590,4000004262,5,252.07,1st Choice Recruitment,CR416849,Environmental Management,Hired Staff,100
http://statistics.data.gov.uk/id/local-authority/12UE,Huntingdonshire District Council,12/01/2017,202730,BC00239,5,"7,800.00",Barry Cornelius Associates,CR422523,Financial Services Mus,Hired Staff,100
http://statistics.data.gov.uk/id/local-authority/12UE,Huntingdonshire District Council,12/01/2017,202730,BC00239,5,"8,640.00",Barry Cornelius Associates,CR422523,Financial Services Mus,Hired Staff,100
http://statistics.data.gov.uk/id/local-authority/12UE,Huntingdonshire District Council,05/01/2017,202148,33991,5,488.88,Meyer Scott Recruitment Limited,CR422369,Financial Services Mus,Hired Staff,100
http://statistics.data.gov.uk/id/local-authority/12UE,Huntingdonshire District Council,05/01/2017,201632,34317,5,586.66,Meyer Scott Recruitment Limited,CR422369,Financial Services Mus,Hired Staff,100
http://statistics.data.gov.uk/id/local-authority/12UE,Huntingdonshire District Council,12/01/2017,202150,34352,5,562.21,Meyer Scott Recruitment Limited,CR422369,Financial Services Mus,Hired Staff,100
http://statistics.data.gov.uk/id/local-authority/12UE,Huntingdonshire District Council,26/01/2017,203119,34382,5,472.58,Meyer Scott Recruitment Limited,CR422369,Financial Services Mus,Hired Staff,100
http://statistics.data.gov.uk/id/local-authority/12UE,Huntingdonshire District Council,19/01/2017,202694,4000004304,5,490.5,1st Choice Recruitment,CR416849,Grounds Maintenance,Hired Staff,100
http://statistics.data.gov.uk/id/local-authority/12UE,Huntingdonshire District Council,05/01/2017,201484,948013,5,"1,014.30",Morgan Hunt Public Uk Ltd,CR415693,Housing  Benefits Admin,Hired Staff,100
http://statistics.data.gov.uk/id/local-authority/12UE,Huntingdonshire District Council,05/01/2017,201483,948014,5,951.62,Morgan Hunt Public Uk Ltd,CR415693,Housing  Benefits Admin,Hired Staff,100
http://statistics.data.gov.uk/id/local-authority/12UE,Huntingdonshire District Council,12/01/2017,201954,949641,5,"1,014.30",Morgan Hunt Public Uk Ltd,CR415693,Housing  Benefits Admin,Hired Staff,100
http://statistics.data.gov.uk/id/local-authority/12UE,Huntingdonshire District Council,12/01/2017,201957,949642,5,937.76,Morgan Hunt Public Uk Ltd,CR415693,Housing  Benefits Admin,Hired Staff,100
http://statistics.data.gov.uk/id/local-authority/12UE,Huntingdonshire District Council,12/01/2017,202146,950793,5,"1,007.40",Morgan Hunt Public Uk Ltd,CR415693,Housing  Benefits Admin,Hired Staff,100
http://statistics.data.gov.uk/id/local-authority/12UE,Huntingdonshire District Council,12/01/2017,202147,950794,5,974.92,Morgan Hunt Public Uk Ltd,CR415693,Housing  Benefits Admin,Hired Staff,100
http://statistics.data.gov.uk/id/local-authority/12UE,Huntingdonshire District Council,26/01/2017,202524,951613,5,593.4,Morgan Hunt Public Uk Ltd,CR415693,Housing  Benefits Admin,Hired Staff,100
http://statistics.data.gov.uk/id/local-authority/12UE,Huntingdonshire District Council,26/01/2017,202525,951614,5,586.56,Morgan Hunt Public Uk Ltd,CR415693,Housing  Benefits Admin,Hired Staff,100
http://statistics.data.gov.uk/id/local-authority/12UE,Huntingdonshire District Council,19/01/2017,202944,952900,5,814.2,Morgan Hunt Public Uk Ltd,CR415693,Housing  Benefits Admin,Hired Staff,100
http://statistics.data.gov.uk/id/local-authority/12UE,Huntingdonshire District Council,19/01/2017,202945,952901,5,776.16,Morgan Hunt Public Uk Ltd,CR415693,Housing  Benefits Admin,Hired Staff,100
http://statistics.data.gov.uk/id/local-authority/12UE,Huntingdonshire District Council,26/01/2017,203170,954239,5,"1,021.20",Morgan Hunt Public Uk Ltd,CR415693,Housing  Benefits Admin,Hired Staff,100
http://statistics.data.gov.uk/id/local-authority/12UE,Huntingdonshire District Council,26/01/2017,203168,954240,5,975.19,Morgan Hunt Public Uk Ltd,CR415693,Housing  Benefits Admin,Hired Staff,100
http://statistics.data.gov.uk/id/local-authority/12UE,Huntingdonshire District Council,05/01/2017,201477,123512,5,792,It Talent Solutions Ltd,CR482676,Imd Shared Service,Hired Staff,100
http://statistics.data.gov.uk/id/local-authority/12UE,Huntingdonshire District Council,12/01/2017,201334,123584,5,"1,350.00",It Talent Solutions Ltd,CR482676,Imd Shared Service,Hired Staff,100
http://statistics.data.gov.uk/id/local-authority/12UE,Huntingdonshire District Council,12/01/2017,201339,123613,5,976.8,It Talent Solutions Ltd,CR482676,Imd Shared Service,Hired Staff,100
http://statistics.data.gov.uk/id/local-authority/12UE,Huntingdonshire District Council,12/01/2017,202289,123642,5,"3,150.00",It Talent Solutions Ltd,CR482676,Imd Shared Service,Hired Staff,100
http://statistics.data.gov.uk/id/local-authority/12UE,Huntingdonshire District Council,19/01/2017,202284,123665,5,792,It Talent Solutions Ltd,CR482676,Imd Shared Service,Hired Staff,100
http://statistics.data.gov.uk/id/local-authority/12UE,Huntingdonshire District Council,19/01/2017,202291,123673,5,"1,350.00",It Talent Solutions Ltd,CR482676,Imd Shared Service,Hired Staff,100
http://statistics.data.gov.uk/id/local-authority/12UE,Huntingdonshire District Council,19/01/2017,202287,123685,5,"2,640.00",It Talent Solutions Ltd,CR482676,Imd Shared Service,Hired Staff,100
http://statistics.data.gov.uk/id/local-authority/12UE,Huntingdonshire District Council,19/01/2017,202285,123690,5,"3,600.00",It Talent Solutions Ltd,CR482676,Imd Shared Service,Hired Staff,100
http://statistics.data.gov.uk/id/local-authority/12UE,Huntingdonshire District Council,26/01/2017,202282,123722,5,"3,150.00",It Talent Solutions Ltd,CR482676,Imd Shared Service,Hired Staff,100
http://statistics.data.gov.uk/id/local-authority/12UE,Huntingdonshire District Council,26/01/2017,202280,123723,5,"1,350.00",It Talent Solutions Ltd,CR482676,Imd Shared Service,Hired Staff,100
http://statistics.data.gov.uk/id/local-authority/12UE,Huntingdonshire District Council,12/01/2017,202784,123760,5,"1,570.80",It Talent Solutions Ltd,CR482676,Imd Shared Service,Hired Staff,100
http://statistics.data.gov.uk/id/local-authority/12UE,Huntingdonshire District Council,12/01/2017,202786,123776,5,"2,640.00",It Talent Solutions Ltd,CR482676,Imd Shared Service,Hired Staff,100
http://statistics.data.gov.uk/id/local-authority/12UE,Huntingdonshire District Council,26/01/2017,203467,123822,5,"1,080.00",It Talent Solutions Ltd,CR482676,Imd Shared Service,Hired Staff,100
http://statistics.data.gov.uk/id/local-authority/12UE,Huntingdonshire District Council,26/01/2017,203468,123842,5,858,It Talent Solutions Ltd,CR482676,Imd Shared Service,Hired Staff,100
http://statistics.data.gov.uk/id/local-authority/12UE,Huntingdonshire District Council,26/01/2017,203469,123843,5,"2,112.00",It Talent Solutions Ltd,CR482676,Imd Shared Service,Hired Staff,100
http://statistics.data.gov.uk/id/local-authority/12UE,Huntingdonshire District Council,26/01/2017,203456,123859,5,"6,480.00",It Talent Solutions Ltd,CR482676,Imd Shared Service,Hired Staff,100
http://statistics.data.gov.uk/id/local-authority/12UE,Huntingdonshire District Council,26/01/2017,203455,123860,5,"6,930.00",It Talent Solutions Ltd,CR482676,Imd Shared Service,Hired Staff,100
http://statistics.data.gov.uk/id/local-authority/12UE,Huntingdonshire District Council,26/01/2017,203457,123871,5,"1,350.00",It Talent Solutions Ltd,CR482676,Imd Shared Service,Hired Staff,100
http://statistics.data.gov.uk/id/local-authority/12UE,Huntingdonshire District Council,26/01/2017,203458,123889,5,884.4,It Talent Solutions Ltd,CR482676,Imd Shared Service,Hired Staff,100
http://statistics.data.gov.uk/id/local-authority/12UE,Huntingdonshire District Council,05/01/2017,202294,R018433,5,"2,850.00",Premier It Recruitment Ltd,CR454029,Imd Shared Service,Hired Staff,100
http://statistics.data.gov.uk/id/local-authority/12UE,Huntingdonshire District Council,12/01/2017,202293,R018627,5,"2,850.00",Premier It Recruitment Ltd,CR454029,Imd Shared Service,Hired Staff,100
http://statistics.data.gov.uk/id/local-authority/12UE,Huntingdonshire District Council,26/01/2017,203474,R018697,5,"2,280.00",Premier It Recruitment Ltd,CR454029,Imd Shared Service,Hired Staff,100
http://statistics.data.gov.uk/id/local-authority/12UE,Huntingdonshire District Council,19/01/2017,202790,R018871,5,"2,280.00",Premier It Recruitment Ltd,CR454029,Imd Shared Service,Hired Staff,100
http://statistics.data.gov.uk/id/local-authority/12UE,Huntingdonshire District Council,26/01/2017,203463,R019024,5,"2,850.00",Premier It Recruitment Ltd,CR454029,Imd Shared Service,Hired Staff,100
http://statistics.data.gov.uk/id/local-authority/12UE,Huntingdonshire District Council,26/01/2017,203464,R019032,5,528,Premier It Recruitment Ltd,CR454029,Imd Shared Service,Hired Staff,100
http://statistics.data.gov.uk/id/local-authority/12UE,Huntingdonshire District Council,05/01/2017,201471,16824,5,"7,440.00",Vivid Resourcing Limited,CR423536,Imd Shared Service,Hired Staff,100
http://statistics.data.gov.uk/id/local-authority/12UE,Huntingdonshire District Council,12/01/2017,201734,16967,5,"7,020.00",Vivid Resourcing Limited,CR423536,Imd Shared Service,Hired Staff,100
http://statistics.data.gov.uk/id/local-authority/12UE,Huntingdonshire District Council,19/01/2017,202292,17120,5,"3,720.00",Vivid Resourcing Limited,CR423536,Imd Shared Service,Hired Staff,100
http://statistics.data.gov.uk/id/local-authority/12UE,Huntingdonshire District Council,12/01/2017,202455,21808,,"1,095.00",Show & Event Security,CR422363,One Leisure St Ives,Hired Staff,100
http://statistics.data.gov.uk/id/local-authority/12UE,Huntingdonshire District Council,12/01/2017,202456,21809,,"1,083.00",Show & Event Security,CR422363,One Leisure St Ives,Hired Staff,100
http://statistics.data.gov.uk/id/local-authority/12UE,Huntingdonshire District Council,19/01/2017,202937,HDC054,5,558,Cfl Estate Services,CR455208,Property Development And Mgt,Hired Staff,100
http://statistics.data.gov.uk/id/local-authority/12UE,Huntingdonshire District Council,26/01/2017,202939,HDC055,5,"1,260.00",Cfl Estate Services,CR455208,Property Development And Mgt,Hired Staff,100
http://statistics.data.gov.uk/id/local-authority/12UE,Huntingdonshire District Council,26/01/2017,202938,HDC056,5,"1,350.00",Cfl Estate Services,CR455208,Property Development And Mgt,Hired Staff,100
http://statistics.data.gov.uk/id/local-authority/12UE,Huntingdonshire District Council,12/01/2017,201358,1007131190,5,"1,656.00",Hays,CR423917,Property Development And Mgt,Hired Staff,100
http://statistics.data.gov.uk/id/local-authority/12UE,Huntingdonshire District Council,26/01/2017,203490,1007135767,5,732,Hays,CR423917,Property Development And Mgt,Hired Staff,100
http://statistics.data.gov.uk/id/local-authority/12UE,Huntingdonshire District Council,19/01/2017,202252,1007153989,5,"2,070.00",Hays,CR423917,Property Development And Mgt,Hired Staff,100
http://statistics.data.gov.uk/id/local-authority/12UE,Huntingdonshire District Council,19/01/2017,202251,1007156952,5,"1,830.00",Hays,CR423917,Property Development And Mgt,Hired Staff,100
http://statistics.data.gov.uk/id/local-authority/12UE,Huntingdonshire District Council,26/01/2017,202151,1007170328,5,"1,656.00",Hays,CR423917,Property Development And Mgt,Hired Staff,100
http://statistics.data.gov.uk/id/local-authority/12UE,Huntingdonshire District Council,26/01/2017,202152,1007171420,5,"1,830.00",Hays,CR423917,Property Development And Mgt,Hired Staff,100
http://statistics.data.gov.uk/id/local-authority/12UE,Huntingdonshire District Council,19/01/2017,202598,IN0565924,5,"1,768.25",Staffline Group,CR416827,Recycling,Hired Staff,100
http://statistics.data.gov.uk/id/local-authority/12UE,Huntingdonshire District Council,19/01/2017,202599,IN0568155,5,"2,300.21",Staffline Group,CR416827,Recycling,Hired Staff,100
http://statistics.data.gov.uk/id/local-authority/12UE,Huntingdonshire District Council,19/01/2017,202604,IN0565927,5,"1,730.10",Staffline Group,CR416827,Street Cleaning,Hired Staff,100
http://statistics.data.gov.uk/id/local-authority/12UE,Huntingdonshire District Council,19/01/2017,202605,IN0568158,5,"1,617.49",Staffline Group,CR416827,Street Cleaning,Hired Staff,100
http://statistics.data.gov.uk/id/local-authority/12UE,Huntingdonshire District Council,12/01/2017,201509,192969,5,"45,000.00",Cambridge City Council,CR017896,Improvement Grants,Home Improvement Agency Fees,724
http://statistics.data.gov.uk/id/local-authority/12UE,Huntingdonshire District Council,19/01/2017,203185,3028752,5,"18,102.35",Metropolitan Housing Trust Ltd,CR487206,Homelessness Management,Hostel Revenue Support,817
http://statistics.data.gov.uk/id/local-authority/12UE,Huntingdonshire District Council,12/01/2017,202785,IN234000,5,"9,390.00",Pitney Bowes Software Europe Ltd,CR424001,Imd Shared Service,I C T Services,731
http://statistics.data.gov.uk/id/local-authority/12UE,Huntingdonshire District Council,26/01/2017,202276,UK10/012017/561,5,"1,266.55",Vodafone Cable & Wireless,CR482316,Imd Shared Service,I T Line Rental,248
http://statistics.data.gov.uk/id/local-authority/12UE,Huntingdonshire District Council,12/01/2017,202727,INS REC STATEME,5,"1,000.00",Zurich Municipal,CR003638,Domestic Refuse,Insurance Excess,797
http://statistics.data.gov.uk/id/local-authority/12UE,Huntingdonshire District Council,05/01/2017,201347,2537947,3,"4,558.50",Trowers And Hamlins,CR422151,Chief Executive & Comt,Legal Fees,729
http://statistics.data.gov.uk/id/local-authority/12UE,Huntingdonshire District Council,26/01/2017,202955,5068076,5,"4,792.46",Performing Right Society,CR033495,One Leisure Huntingdon,Licences,730
http://statistics.data.gov.uk/id/local-authority/12UE,Huntingdonshire District Council,05/01/2017,202160,INV-0042,5,125,Wamo Sports Ltd,CR423559,One Leisure Huntingdon,Licences,730
http://statistics.data.gov.uk/id/local-authority/12UE,Huntingdonshire District Council,26/01/2017,202955,5068076,5,"4,662.18",Performing Right Society,CR033495,One Leisure Ramsey,Licences,730
http://statistics.data.gov.uk/id/local-authority/12UE,Huntingdonshire District Council,05/01/2017,202160,INV-0042,5,62.5,Wamo Sports Ltd,CR423559,One Leisure Ramsey,Licences,730
http://statistics.data.gov.uk/id/local-authority/12UE,Huntingdonshire District Council,26/01/2017,202955,5068076,5,"2,792.04",Performing Right Society,CR033495,One Leisure Sawtry,Licences,730
http://statistics.data.gov.uk/id/local-authority/12UE,Huntingdonshire District Council,05/01/2017,202160,INV-0042,5,62.5,Wamo Sports Ltd,CR423559,One Leisure Sawtry,Licences,730
http://statistics.data.gov.uk/id/local-authority/12UE,Huntingdonshire District Council,26/01/2017,202955,5068076,5,"12,193.76",Performing Right Society,CR033495,One Leisure St Ives,Licences,730
http://statistics.data.gov.uk/id/local-authority/12UE,Huntingdonshire District Council,05/01/2017,202160,INV-0042,5,125,Wamo Sports Ltd,CR423559,One Leisure St Ives,Licences,730
http://statistics.data.gov.uk/id/local-authority/12UE,Huntingdonshire District Council,26/01/2017,202955,5068076,5,"6,851.44",Performing Right Society,CR033495,One Leisure St Neots,Licences,730
http://statistics.data.gov.uk/id/local-authority/12UE,Huntingdonshire District Council,05/01/2017,202160,INV-0042,5,125,Wamo Sports Ltd,CR423559,One Leisure St Neots,Licences,730
http://statistics.data.gov.uk/id/local-authority/12UE,Huntingdonshire District Council,19/01/2017,606851,ERS1604012,6,562.49,Electoral Reform Services,CR479981,Electoral Registration,Management Charge,733
http://statistics.data.gov.uk/id/local-authority/12UE,Huntingdonshire District Council,12/01/2017,202686,AC0214133,5,"5,014.76",Ashco Building & Maintenance Services Ltd,CR422300,Improvement Grants,Mandatory Grants,801
http://statistics.data.gov.uk/id/local-authority/12UE,Huntingdonshire District Council,12/01/2017,202526,AC214135,5,"24,454.34",Ashco Building & Maintenance Services Ltd,CR422300,Improvement Grants,Mandatory Grants,801
http://statistics.data.gov.uk/id/local-authority/12UE,Huntingdonshire District Council,05/01/2017,201976,584,5,"7,270.00",B P Morse,CR030128,Improvement Grants,Mandatory Grants,801
http://statistics.data.gov.uk/id/local-authority/12UE,Huntingdonshire District Council,12/01/2017,198679,S27926,5,"3,856.00",Bsg Property Services Ltd,CR089905,Improvement Grants,Mandatory Grants,801
http://statistics.data.gov.uk/id/local-authority/12UE,Huntingdonshire District Council,05/01/2017,201977,514718,4,"4,405.88",Foster Property Maintenance Ltd,CR412056,Improvement Grants,Mandatory Grants,801
http://statistics.data.gov.uk/id/local-authority/12UE,Huntingdonshire District Council,05/01/2017,201978,SL40041,4,"4,794.00",Foster Property Maintenance Ltd,CR412056,Improvement Grants,Mandatory Grants,801
http://statistics.data.gov.uk/id/local-authority/12UE,Huntingdonshire District Council,12/01/2017,201629,1474,5,"4,895.00",Hd Property Services,CR422148,Improvement Grants,Mandatory Grants,801
http://statistics.data.gov.uk/id/local-authority/12UE,Huntingdonshire District Council,05/01/2017,202210,1489,5,"2,981.00",Hd Property Services,CR422148,Improvement Grants,Mandatory Grants,801
http://statistics.data.gov.uk/id/local-authority/12UE,Huntingdonshire District Council,19/01/2017,203196,3123017,5,"1,585.12",Hill-Rom Ltd,CR480680,Improvement Grants,Mandatory Grants,801
http://statistics.data.gov.uk/id/local-authority/12UE,Huntingdonshire District Council,19/01/2017,202682,19467,5,"5,506.38",M Watson Construction Ltd,CR480595,Improvement Grants,Mandatory Grants,801
http://statistics.data.gov.uk/id/local-authority/12UE,Huntingdonshire District Council,19/01/2017,202683,19468,5,510.39,M Watson Construction Ltd,CR480595,Improvement Grants,Mandatory Grants,801
http://statistics.data.gov.uk/id/local-authority/12UE,Huntingdonshire District Council,19/01/2017,202245,19469,5,"3,627.42",M Watson Construction Ltd,CR480595,Improvement Grants,Mandatory Grants,801
http://statistics.data.gov.uk/id/local-authority/12UE,Huntingdonshire District Council,05/01/2017,606258,21729,4,"4,015.00",Premier Service And Installation,CR453810,Improvement Grants,Mandatory Grants,801
http://statistics.data.gov.uk/id/local-authority/12UE,Huntingdonshire District Council,19/01/2017,197361,SIN112055,5,"6,792.06",Princebuild Ltd,CR000645,Improvement Grants,Mandatory Grants,801
http://statistics.data.gov.uk/id/local-authority/12UE,Huntingdonshire District Council,19/01/2017,200234,INV000078,5,"4,220.00",Squires & Son Ltd,CR478185,Improvement Grants,Mandatory Grants,801
http://statistics.data.gov.uk/id/local-authority/12UE,Huntingdonshire District Council,05/01/2017,201975,S085053570,5,"3,016.00",Stannah Ltd Ref(20hu025),CR000759,Improvement Grants,Mandatory Grants,801
http://statistics.data.gov.uk/id/local-authority/12UE,Huntingdonshire District Council,19/01/2017,203101,S085054575,5,"2,442.00",Stannah Ltd Ref(20hu025),CR000759,Improvement Grants,Mandatory Grants,801
http://statistics.data.gov.uk/id/local-authority/12UE,Huntingdonshire District Council,05/01/2017,202158,382,7,435,Wayne Bingham,CR405796,Improvement Grants,Mandatory Grants,801
http://statistics.data.gov.uk/id/local-authority/12UE,Huntingdonshire District Council,26/01/2017,203017,189955,5,185.04,Arthur Ibbett Ltd,CR000430,Countryside,Materials,550
http://statistics.data.gov.uk/id/local-authority/12UE,Huntingdonshire District Council,05/01/2017,202299,2102879058,5,50.76,Booker Cash And Carry,CR027611,Countryside,Materials,550
http://statistics.data.gov.uk/id/local-authority/12UE,Huntingdonshire District Council,19/01/2017,202632,2102921093,5,27.07,Booker Cash And Carry,CR027611,Countryside,Materials,550
http://statistics.data.gov.uk/id/local-authority/12UE,Huntingdonshire District Council,26/01/2017,203086,2102935325,5,38.38,Booker Cash And Carry,CR027611,Countryside,Materials,550
http://statistics.data.gov.uk/id/local-authority/12UE,Huntingdonshire District Council,12/01/2017,202710,170147,5,594,Direct Plastics Ltd,CR423171,Countryside,Materials,550
http://statistics.data.gov.uk/id/local-authority/12UE,Huntingdonshire District Council,05/01/2017,202304,162050,5,330.6,Huntingdon Timber Supplies,CR482513,Countryside,Materials,550
http://statistics.data.gov.uk/id/local-authority/12UE,Huntingdonshire District Council,26/01/2017,202696,163676,5,289.82,Huntingdon Timber Supplies,CR482513,Countryside,Materials,550
http://statistics.data.gov.uk/id/local-authority/12UE,Huntingdonshire District Council,26/01/2017,202640,270819I,5,"2,954.76",A C Commercials,CR000141,Fleet Management,Materials,550
http://statistics.data.gov.uk/id/local-authority/12UE,Huntingdonshire District Council,26/01/2017,203031,SN2562367,5,381.6,Berendsen,CR478298,Fleet Management,Materials,550
http://statistics.data.gov.uk/id/local-authority/12UE,Huntingdonshire District Council,26/01/2017,202996,37722,5,268.74,Trinity Engineering & Component Supplies Ltd,CR455479,Fleet Management,Materials,550
http://statistics.data.gov.uk/id/local-authority/12UE,Huntingdonshire District Council,26/01/2017,202997,37723,5,441.43,Trinity Engineering & Component Supplies Ltd,CR455479,Fleet Management,Materials,550
http://statistics.data.gov.uk/id/local-authority/12UE,Huntingdonshire District Council,05/01/2017,201235,4280280,1,83.04,Espo,CR006566,One Leisure Huntingdon,Materials,550
http://statistics.data.gov.uk/id/local-authority/12UE,Huntingdonshire District Council,05/01/2017,201970,2102880213,5,86.08,Booker Cash And Carry,CR027611,One Leisure St Ives,Materials,550
http://statistics.data.gov.uk/id/local-authority/12UE,Huntingdonshire District Council,05/01/2017,201967,2102880796,5,15.59,Booker Cash And Carry,CR027611,One Leisure St Ives,Materials,550
http://statistics.data.gov.uk/id/local-authority/12UE,Huntingdonshire District Council,12/01/2017,202457,2102897772,5,397.18,Booker Cash And Carry,CR027611,One Leisure St Ives,Materials,550
http://statistics.data.gov.uk/id/local-authority/12UE,Huntingdonshire District Council,12/01/2017,202181,2102907600,5,48.06,Booker Cash And Carry,CR027611,One Leisure St Ives,Materials,550
http://statistics.data.gov.uk/id/local-authority/12UE,Huntingdonshire District Council,26/01/2017,203092,2102935018,5,126.59,Booker Cash And Carry,CR027611,One Leisure St Ives,Materials,550
http://statistics.data.gov.uk/id/local-authority/12UE,Huntingdonshire District Council,05/01/2017,202201,9795,5,709.2,Border Studio,CR402068,One Leisure St Ives,Materials,550
http://statistics.data.gov.uk/id/local-authority/12UE,Huntingdonshire District Council,19/01/2017,203161,WIZARD OF OZ,5,479.68,Centre Theatre Players,CR006851,One Leisure St Ives,Materials,550
http://statistics.data.gov.uk/id/local-authority/12UE,Huntingdonshire District Council,19/01/2017,203162,WIZARD OF OZ,5,397.11,Mr R Chalkley,CR012795,One Leisure St Ives,Materials,550
http://statistics.data.gov.uk/id/local-authority/12UE,Huntingdonshire District Council,05/01/2017,200913,92545284,5,446.33,Speedo International Limited,CR41427,One Leisure St Ives,Materials For Resale,570
http://statistics.data.gov.uk/id/local-authority/12UE,Huntingdonshire District Council,12/01/2017,606442,7168,5,410.4,Heales Medical Ltd,CR477639,Human Resources,Medical Fees,734
http://statistics.data.gov.uk/id/local-authority/12UE,Huntingdonshire District Council,12/01/2017,201723,101338/104924,5,388.42,Galtec Solutions Ltd,CR423396,Financial Services Mus,Other I T Hardware,203
http://statistics.data.gov.uk/id/local-authority/12UE,Huntingdonshire District Council,05/01/2017,201279,13630,5,280.8,Advanced Power Technology Ltd,CR423568,Imd Shared Service,Other I T Hardware,203
http://statistics.data.gov.uk/id/local-authority/12UE,Huntingdonshire District Council,05/01/2017,201284,SINV00100407,5,952.2,Bist,CR422733,Imd Shared Service,Other I T Hardware,203
http://statistics.data.gov.uk/id/local-authority/12UE,Huntingdonshire District Council,05/01/2017,202253,12853,5,"1,406.28",Playfords Ltd,CR479055,Imd Shared Service,Other I T Hardware,203
http://statistics.data.gov.uk/id/local-authority/12UE,Huntingdonshire District Council,05/01/2017,202253,12853,5,"1,574.28",Playfords Ltd,CR479055,Imd Shared Service,Other I T Hardware,203
http://statistics.data.gov.uk/id/local-authority/12UE,Huntingdonshire District Council,05/01/2017,202253,12853,5,"1,910.28",Playfords Ltd,CR479055,Imd Shared Service,Other I T Hardware,203
http://statistics.data.gov.uk/id/local-authority/12UE,Huntingdonshire District Council,05/01/2017,202253,12853,5,"1,910.28",Playfords Ltd,CR479055,Imd Shared Service,Other I T Hardware,203
http://statistics.data.gov.uk/id/local-authority/12UE,Huntingdonshire District Council,05/01/2017,202253,12853,5,"3,496.56",Playfords Ltd,CR479055,Imd Shared Service,Other I T Hardware,203
http://statistics.data.gov.uk/id/local-authority/12UE,Huntingdonshire District Council,05/01/2017,201276,435663,,"2,076.02",Storm Technologies,CR480909,Imd Shared Service,Other I T Hardware,203
http://statistics.data.gov.uk/id/local-authority/12UE,Huntingdonshire District Council,19/01/2017,202257,438209,,928.14,Storm Technologies,CR480909,Imd Shared Service,Other I T Hardware,203
http://statistics.data.gov.uk/id/local-authority/12UE,Huntingdonshire District Council,05/01/2017,201940,6436530,5,255.6,Antalis Ltd,CR479468,Document Centre,Paper,562
http://statistics.data.gov.uk/id/local-authority/12UE,Huntingdonshire District Council,05/01/2017,201940,6436530,5,72.84,Antalis Ltd,CR479468,Document Centre,Paper,562
http://statistics.data.gov.uk/id/local-authority/12UE,Huntingdonshire District Council,05/01/2017,201940,6436530,5,542.4,Antalis Ltd,CR479468,Document Centre,Paper,562
http://statistics.data.gov.uk/id/local-authority/12UE,Huntingdonshire District Council,19/01/2017,201961,6461914,5,91.18,Antalis Ltd,CR479468,Document Centre,Paper,562
http://statistics.data.gov.uk/id/local-authority/12UE,Huntingdonshire District Council,19/01/2017,201961,6461914,5,36.46,Antalis Ltd,CR479468,Document Centre,Paper,562
http://statistics.data.gov.uk/id/local-authority/12UE,Huntingdonshire District Council,19/01/2017,201961,6461914,5,215.8,Antalis Ltd,CR479468,Document Centre,Paper,562
http://statistics.data.gov.uk/id/local-authority/12UE,Huntingdonshire District Council,19/01/2017,201961,6461914,5,67.28,Antalis Ltd,CR479468,Document Centre,Paper,562
http://statistics.data.gov.uk/id/local-authority/12UE,Huntingdonshire District Council,19/01/2017,201961,6461914,5,95.26,Antalis Ltd,CR479468,Document Centre,Paper,562
http://statistics.data.gov.uk/id/local-authority/12UE,Huntingdonshire District Council,12/01/2017,202532,6481046,5,31.96,Antalis Ltd,CR479468,Document Centre,Paper,562
http://statistics.data.gov.uk/id/local-authority/12UE,Huntingdonshire District Council,12/01/2017,202532,6481046,5,271.2,Antalis Ltd,CR479468,Document Centre,Paper,562
http://statistics.data.gov.uk/id/local-authority/12UE,Huntingdonshire District Council,12/01/2017,202533,6485808,5,127.8,Antalis Ltd,CR479468,Document Centre,Paper,562
http://statistics.data.gov.uk/id/local-authority/12UE,Huntingdonshire District Council,12/01/2017,202533,6485808,5,157.52,Antalis Ltd,CR479468,Document Centre,Paper,562
http://statistics.data.gov.uk/id/local-authority/12UE,Huntingdonshire District Council,12/01/2017,202533,6485808,5,46.44,Antalis Ltd,CR479468,Document Centre,Paper,562
http://statistics.data.gov.uk/id/local-authority/12UE,Huntingdonshire District Council,12/01/2017,202533,6485808,5,52.72,Antalis Ltd,CR479468,Document Centre,Paper,562
http://statistics.data.gov.uk/id/local-authority/12UE,Huntingdonshire District Council,19/01/2017,203080,1604112,5,"1,868.13",Cambridgeshire County Council,CR017440,Chief Executive & Comt,Pension Early Retirements,151
http://statistics.data.gov.uk/id/local-authority/12UE,Huntingdonshire District Council,19/01/2017,203080,1604112,5,"30,425.26",Cambridgeshire County Council,CR017440,Chief Executive & Comt,Pension Early Retirements,151
http://statistics.data.gov.uk/id/local-authority/12UE,Huntingdonshire District Council,19/01/2017,203080,1604112,5,242.26,Cambridgeshire County Council,CR017440,Chief Executive & Comt,Pension Early Retirements,151
http://statistics.data.gov.uk/id/local-authority/12UE,Huntingdonshire District Council,19/01/2017,203080,1604112,5,"2,121.65",Cambridgeshire County Council,CR017440,Chief Executive & Comt,Pension Early Retirements,151
http://statistics.data.gov.uk/id/local-authority/12UE,Huntingdonshire District Council,26/01/2017,203480,SQU047691,5,342,S E Controls,CR423091,Pathfinder House Site,Plant & Equipment Maintenance,380
http://statistics.data.gov.uk/id/local-authority/12UE,Huntingdonshire District Council,05/01/2017,202288,111127,5,291.6,Barcham Trees,CR40001,Grounds Maintenance,Plants And Seeds,556
http://statistics.data.gov.uk/id/local-authority/12UE,Huntingdonshire District Council,19/01/2017,203130,732785,5,"2,991.00",Wickstead Leisure Ltd,CR422785,Countryside,Playground Equipment,360
http://statistics.data.gov.uk/id/local-authority/12UE,Huntingdonshire District Council,19/01/2017,203109,732786,5,720,Wickstead Leisure Ltd,CR422785,Countryside,Playground Equipment,360
http://statistics.data.gov.uk/id/local-authority/12UE,Huntingdonshire District Council,26/01/2017,203132,OP / I107609,5,651.43,Sutcliffe Play,CR478132,Parks & Open Spaces,Playground Equipment,360
http://statistics.data.gov.uk/id/local-authority/12UE,Huntingdonshire District Council,26/01/2017,203491,OP/I107480,5,540,Sutcliffe Play,CR478132,Parks & Open Spaces,Playground Equipment,360
http://statistics.data.gov.uk/id/local-authority/12UE,Huntingdonshire District Council,19/01/2017,202793,732379,5,"11,218.80",Wicksteed Leisure Ltd,CR028997,Parks Equipment Capital,Playground Equipment,360
http://statistics.data.gov.uk/id/local-authority/12UE,Huntingdonshire District Council,05/01/2017,202155,,5,-398.06,Royal Mail,CR027083,Council Tax,Postage,231
http://statistics.data.gov.uk/id/local-authority/12UE,Huntingdonshire District Council,05/01/2017,201524,IN16PS16006958,5,705.07,Whistl Uk Ltd,CR424061,Council Tax,Postage,231
http://statistics.data.gov.uk/id/local-authority/12UE,Huntingdonshire District Council,19/01/2017,201962,IN16PS16007096,5,425.63,Whistl Uk Ltd,CR424061,Council Tax,Postage,231
http://statistics.data.gov.uk/id/local-authority/12UE,Huntingdonshire District Council,19/01/2017,202149,IN16PS16007218,5,672.49,Whistl Uk Ltd,CR424061,Council Tax,Postage,231
http://statistics.data.gov.uk/id/local-authority/12UE,Huntingdonshire District Council,17/01/2017,203075,,5,"1,500.00",Neopost,CR028326,Document Centre,Postage,231
http://statistics.data.gov.uk/id/local-authority/12UE,Huntingdonshire District Council,05/01/2017,201599,9053484109,5,798.84,Royal Mail,CR027083,Document Centre,Postage,231
http://statistics.data.gov.uk/id/local-authority/12UE,Huntingdonshire District Council,19/01/2017,202549,9053568008,5,931.14,Royal Mail,CR027083,Document Centre,Postage,231
http://statistics.data.gov.uk/id/local-authority/12UE,Huntingdonshire District Council,05/01/2017,202155,,5,"-1,094.77",Royal Mail,CR027083,Document Centre,Postage,231
http://statistics.data.gov.uk/id/local-authority/12UE,Huntingdonshire District Council,05/01/2017,201524,IN16PS16006958,5,"1,083.93",Whistl Uk Ltd,CR424061,Document Centre,Postage,231
http://statistics.data.gov.uk/id/local-authority/12UE,Huntingdonshire District Council,19/01/2017,201962,IN16PS16007096,5,"1,063.88",Whistl Uk Ltd,CR424061,Document Centre,Postage,231
http://statistics.data.gov.uk/id/local-authority/12UE,Huntingdonshire District Council,19/01/2017,202149,IN16PS16007218,5,"1,141.56",Whistl Uk Ltd,CR424061,Document Centre,Postage,231
http://statistics.data.gov.uk/id/local-authority/12UE,Huntingdonshire District Council,05/01/2017,201598,9053481012,5,526.25,Royal Mail,CR027083,Elections,Postage,231
http://statistics.data.gov.uk/id/local-authority/12UE,Huntingdonshire District Council,05/01/2017,201599,9053484109,5,728.11,Royal Mail,CR027083,Electoral Registration,Postage,231
http://statistics.data.gov.uk/id/local-authority/12UE,Huntingdonshire District Council,19/01/2017,202549,9053568008,5,930.17,Royal Mail,CR027083,Electoral Registration,Postage,231
http://statistics.data.gov.uk/id/local-authority/12UE,Huntingdonshire District Council,05/01/2017,202155,,5,-209.69,Royal Mail,CR027083,Electoral Registration,Postage,231
http://statistics.data.gov.uk/id/local-authority/12UE,Huntingdonshire District Council,05/01/2017,201524,IN16PS16006958,5,258.97,Whistl Uk Ltd,CR424061,Electoral Registration,Postage,231
http://statistics.data.gov.uk/id/local-authority/12UE,Huntingdonshire District Council,19/01/2017,201962,IN16PS16007096,5,246.85,Whistl Uk Ltd,CR424061,Electoral Registration,Postage,231
http://statistics.data.gov.uk/id/local-authority/12UE,Huntingdonshire District Council,19/01/2017,202149,IN16PS16007218,5,200.49,Whistl Uk Ltd,CR424061,Electoral Registration,Postage,231
http://statistics.data.gov.uk/id/local-authority/12UE,Huntingdonshire District Council,05/01/2017,201524,IN16PS16006958,5,215.11,Whistl Uk Ltd,CR424061,Housing  Benefits Admin,Postage,231
http://statistics.data.gov.uk/id/local-authority/12UE,Huntingdonshire District Council,05/01/2017,201599,9053484109,5,161.65,Royal Mail,CR027083,One Leisure Active Lifestyles,Postage,231
http://statistics.data.gov.uk/id/local-authority/12UE,Huntingdonshire District Council,05/01/2017,201993,40157,5,194,Clanpress King'S Lynn Ltd,CR413516,One Leisure Huntingdon,Printing (External),220
http://statistics.data.gov.uk/id/local-authority/12UE,Huntingdonshire District Council,19/01/2017,202520,333675,5,406.78,Primesight  Ltd,CR132710,One Leisure Huntingdon,Printing (External),220
http://statistics.data.gov.uk/id/local-authority/12UE,Huntingdonshire District Council,19/01/2017,202521,334352,5,106.44,Primesight  Ltd,CR132710,One Leisure Huntingdon,Printing (External),220
http://statistics.data.gov.uk/id/local-authority/12UE,Huntingdonshire District Council,05/01/2017,201993,40157,5,112,Clanpress King'S Lynn Ltd,CR413516,One Leisure Ramsey,Printing (External),220
http://statistics.data.gov.uk/id/local-authority/12UE,Huntingdonshire District Council,19/01/2017,202520,333675,5,203.4,Primesight  Ltd,CR132710,One Leisure Ramsey,Printing (External),220
http://statistics.data.gov.uk/id/local-authority/12UE,Huntingdonshire District Council,19/01/2017,202521,334352,5,53.22,Primesight  Ltd,CR132710,One Leisure Ramsey,Printing (External),220
http://statistics.data.gov.uk/id/local-authority/12UE,Huntingdonshire District Council,05/01/2017,201993,40157,5,129,Clanpress King'S Lynn Ltd,CR413516,One Leisure Sawtry,Printing (External),220
http://statistics.data.gov.uk/id/local-authority/12UE,Huntingdonshire District Council,19/01/2017,202520,333675,5,203.39,Primesight  Ltd,CR132710,One Leisure Sawtry,Printing (External),220
http://statistics.data.gov.uk/id/local-authority/12UE,Huntingdonshire District Council,19/01/2017,202521,334352,5,53.22,Primesight  Ltd,CR132710,One Leisure Sawtry,Printing (External),220
http://statistics.data.gov.uk/id/local-authority/12UE,Huntingdonshire District Council,05/01/2017,201993,40157,5,194,Clanpress King'S Lynn Ltd,CR413516,One Leisure St Ives,Printing (External),220
http://statistics.data.gov.uk/id/local-authority/12UE,Huntingdonshire District Council,19/01/2017,202520,333675,5,406.78,Primesight  Ltd,CR132710,One Leisure St Ives,Printing (External),220
http://statistics.data.gov.uk/id/local-authority/12UE,Huntingdonshire District Council,19/01/2017,202521,334352,5,106.44,Primesight  Ltd,CR132710,One Leisure St Ives,Printing (External),220
http://statistics.data.gov.uk/id/local-authority/12UE,Huntingdonshire District Council,05/01/2017,201993,40157,5,207,Clanpress King'S Lynn Ltd,CR413516,One Leisure St Neots,Printing (External),220
http://statistics.data.gov.uk/id/local-authority/12UE,Huntingdonshire District Council,19/01/2017,202520,333675,5,406.78,Primesight  Ltd,CR132710,One Leisure St Neots,Printing (External),220
http://statistics.data.gov.uk/id/local-authority/12UE,Huntingdonshire District Council,19/01/2017,202521,334352,5,106.44,Primesight  Ltd,CR132710,One Leisure St Neots,Printing (External),220
http://statistics.data.gov.uk/id/local-authority/12UE,Huntingdonshire District Council,12/01/2017,201943,40329,5,644,Clanpress King'S Lynn Ltd,CR413516,One Leisure St Ives,Printing (Internal),S04
http://statistics.data.gov.uk/id/local-authority/12UE,Huntingdonshire District Council,12/01/2017,202690,300146414,5,"1,155.60",Freight Transport Association,CR003104,Fleet Management,Professional Subscriptions,755
http://statistics.data.gov.uk/id/local-authority/12UE,Huntingdonshire District Council,26/01/2017,203017,189955,5,68.18,Arthur Ibbett Ltd,CR000430,Countryside,Protective Clothing & Uniforms,163
http://statistics.data.gov.uk/id/local-authority/12UE,Huntingdonshire District Council,19/01/2017,202977,376149,5,"3,321.54",Smi Group,CR423139,Domestic Refuse,Protective Clothing & Uniforms,163
http://statistics.data.gov.uk/id/local-authority/12UE,Huntingdonshire District Council,12/01/2017,201496,382228,5,770.28,Smi Group,CR423139,Domestic Refuse,Protective Clothing & Uniforms,163
http://statistics.data.gov.uk/id/local-authority/12UE,Huntingdonshire District Council,19/01/2017,203023,SIN0624735,5,262.46,Howsafe Ltd,CR000409,Fleet Management,Protective Clothing & Uniforms,163
http://statistics.data.gov.uk/id/local-authority/12UE,Huntingdonshire District Council,19/01/2017,203025,SIN0624736,5,262.46,Howsafe Ltd,CR000409,Fleet Management,Protective Clothing & Uniforms,163
http://statistics.data.gov.uk/id/local-authority/12UE,Huntingdonshire District Council,19/01/2017,203026,SIN0624737,5,262.46,Howsafe Ltd,CR000409,Fleet Management,Protective Clothing & Uniforms,163
http://statistics.data.gov.uk/id/local-authority/12UE,Huntingdonshire District Council,19/01/2017,203027,SIN0624738,5,262.46,Howsafe Ltd,CR000409,Fleet Management,Protective Clothing & Uniforms,163
http://statistics.data.gov.uk/id/local-authority/12UE,Huntingdonshire District Council,12/01/2017,202697,SIN0624913,5,304.24,Howsafe Ltd,CR000409,Operations Mgt Units,Protective Clothing & Uniforms,163
http://statistics.data.gov.uk/id/local-authority/12UE,Huntingdonshire District Council,26/01/2017,202537,50082287,5,"2,400.00",Haymarket Media Group Ltd,CR479500,Planning M U'S,Recruitment Costs,120
http://statistics.data.gov.uk/id/local-authority/12UE,Huntingdonshire District Council,19/01/2017,202718,SI 31504,5,"16,074.72",Ssi Schaefer Ltd,CR407190,Recycling Equipment Capital,Recycling Bins,525
http://statistics.data.gov.uk/id/local-authority/12UE,Huntingdonshire District Council,19/01/2017,203106,28071,5,"2,964.00",Uk Container Maintenance Ltd,CR424133,Recycling Equipment Capital,Recycling Bins,525
http://statistics.data.gov.uk/id/local-authority/12UE,Huntingdonshire District Council,12/01/2017,202734,ASI11712,5,"18,099.94",Ameycespa (East) Ltd,CR127636,Recycling,Recycling Collections,747
http://statistics.data.gov.uk/id/local-authority/12UE,Huntingdonshire District Council,12/01/2017,190913,ASI13820,5,"19,487.68",Ameycespa (East) Ltd,CR127636,Recycling,Recycling Collections,747
http://statistics.data.gov.uk/id/local-authority/12UE,Huntingdonshire District Council,12/01/2017,202735,ASI18368,5,"15,312.70",Ameycespa (East) Ltd,CR127636,Recycling,Recycling Collections,747
http://statistics.data.gov.uk/id/local-authority/12UE,Huntingdonshire District Council,12/01/2017,202737,ASI20394,5,"9,077.70",Ameycespa (East) Ltd,CR127636,Recycling,Recycling Collections,747
http://statistics.data.gov.uk/id/local-authority/12UE,Huntingdonshire District Council,12/01/2017,202743,ASI24329,5,"12,426.79",Ameycespa (East) Ltd,CR127636,Recycling,Recycling Collections,747
http://statistics.data.gov.uk/id/local-authority/12UE,Huntingdonshire District Council,12/01/2017,202736,ASI24330,5,"14,282.14",Ameycespa (East) Ltd,CR127636,Recycling,Recycling Collections,747
http://statistics.data.gov.uk/id/local-authority/12UE,Huntingdonshire District Council,12/01/2017,202732,ASI24361,5,"17,741.51",Ameycespa (East) Ltd,CR127636,Recycling,Recycling Collections,747
http://statistics.data.gov.uk/id/local-authority/12UE,Huntingdonshire District Council,19/01/2017,202739,ASI28524,5,"13,659.94",Ameycespa (East) Ltd,CR127636,Recycling,Recycling Collections,747
http://statistics.data.gov.uk/id/local-authority/12UE,Huntingdonshire District Council,19/01/2017,202740,ASI28527,5,"19,916.83",Ameycespa (East) Ltd,CR127636,Recycling,Recycling Collections,747
http://statistics.data.gov.uk/id/local-authority/12UE,Huntingdonshire District Council,19/01/2017,202742,ASI28528,5,"17,116.44",Ameycespa (East) Ltd,CR127636,Recycling,Recycling Collections,747
http://statistics.data.gov.uk/id/local-authority/12UE,Huntingdonshire District Council,12/01/2017,180524,PSC007416,5,"-56,032.24",Ameycespa (East) Ltd,CR127636,Recycling,Recycling Collections,747
http://statistics.data.gov.uk/id/local-authority/12UE,Huntingdonshire District Council,12/01/2017,180520,PSC007479,5,"-60,790.48",Ameycespa (East) Ltd,CR127636,Recycling,Recycling Collections,747
http://statistics.data.gov.uk/id/local-authority/12UE,Huntingdonshire District Council,12/01/2017,183022,PSC008080,5,-322,Ameycespa (East) Ltd,CR127636,Recycling,Recycling Collections,747
http://statistics.data.gov.uk/id/local-authority/12UE,Huntingdonshire District Council,12/01/2017,180517,PSI0168762,5,"32,251.99",Ameycespa (East) Ltd,CR127636,Recycling,Recycling Collections,747
http://statistics.data.gov.uk/id/local-authority/12UE,Huntingdonshire District Council,12/01/2017,180904,PSI0182005,5,"21,686.20",Ameycespa (East) Ltd,CR127636,Recycling,Recycling Collections,747
http://statistics.data.gov.uk/id/local-authority/12UE,Huntingdonshire District Council,12/01/2017,183025,PSI0191749,5,"11,795.89",Ameycespa (East) Ltd,CR127636,Recycling,Recycling Collections,747
http://statistics.data.gov.uk/id/local-authority/12UE,Huntingdonshire District Council,12/01/2017,179845,PSIO189454,5,"10,984.95",Ameycespa (East) Ltd,CR127636,Recycling,Recycling Collections,747
http://statistics.data.gov.uk/id/local-authority/12UE,Huntingdonshire District Council,12/01/2017,202307,103564,5,799.22,Gelpack Excelsior Limited,CR002966,Domestic Refuse,Refuse Sacks,552
http://statistics.data.gov.uk/id/local-authority/12UE,Huntingdonshire District Council,12/01/2017,202469,103687,5,"3,996.10",Gelpack Excelsior Limited,CR002966,Domestic Refuse,Refuse Sacks,552
http://statistics.data.gov.uk/id/local-authority/12UE,Huntingdonshire District Council,19/01/2017,202468,103738,5,"1,598.44",Gelpack Excelsior Limited,CR002966,Domestic Refuse,Refuse Sacks,552
http://statistics.data.gov.uk/id/local-authority/12UE,Huntingdonshire District Council,19/01/2017,202470,103739,5,"1,598.44",Gelpack Excelsior Limited,CR002966,Domestic Refuse,Refuse Sacks,552
http://statistics.data.gov.uk/id/local-authority/12UE,Huntingdonshire District Council,12/01/2017,202719,HDC 001,,280,Mr Phil Latin,CR424167,Homelessness Management,Removal/Storage,750
http://statistics.data.gov.uk/id/local-authority/12UE,Huntingdonshire District Council,12/01/2017,202460,4698,5,"1,869.02",Oastlodge Ltd,CR479114,Off Street Parking,Rent,410
http://statistics.data.gov.uk/id/local-authority/12UE,Huntingdonshire District Council,19/01/2017,201982,8960,5,"7,488.00",Solace In Business,CR416525,Chief Executive & Comt,Consultants,711
http://statistics.data.gov.uk/id/local-authority/12UE,Huntingdonshire District Council,19/01/2017,606751,3897,5,390,Andrew Firebrace Partnership Ltd,CR413411,Improvement Grants,Shared Service Savings,798
http://statistics.data.gov.uk/id/local-authority/12UE,Huntingdonshire District Council,05/01/2017,202209,1490,5,318,Hd Property Services,CR422148,Improvement Grants,Shared Service Savings,798
http://statistics.data.gov.uk/id/local-authority/12UE,Huntingdonshire District Council,19/01/2017,202935,INV040074,5,714.66,Urbis Lighting Ltd,CR000016,Bus Stations,Sitework,359
http://statistics.data.gov.uk/id/local-authority/12UE,Huntingdonshire District Council,19/01/2017,202935,INV040074,5,474.66,Urbis Lighting Ltd,CR000016,Bus Stations,Sitework,359
http://statistics.data.gov.uk/id/local-authority/12UE,Huntingdonshire District Council,18/01/2017,203087,ARCMIN/99059502,5,"103,860.00",Advanced Business Solutions,CR032921,Financial Services Mus,Software,206
http://statistics.data.gov.uk/id/local-authority/12UE,Huntingdonshire District Council,12/01/2017,202278,ARCMIN/99060575,5,943.92,Advanced Business Solutions,CR032921,Financial Services Mus,Software,206
http://statistics.data.gov.uk/id/local-authority/12UE,Huntingdonshire District Council,12/01/2017,201901,6003455564,5,"9,480.00",Capita Business Services Ltd,CR410639,Financial Services Mus,Software,206
http://statistics.data.gov.uk/id/local-authority/12UE,Huntingdonshire District Council,26/01/2017,202254,SIN102259,5,"2,625.00",Eacs Ltd,CR404499,Imd Shared Service,Software,206
http://statistics.data.gov.uk/id/local-authority/12UE,Huntingdonshire District Council,12/01/2017,201983,INV-0015,,"24,000.00",Protocol Policy Systems Ltd,CR424108,Imd Shared Service,Software,206
http://statistics.data.gov.uk/id/local-authority/12UE,Huntingdonshire District Council,12/01/2017,201983,INV-0015,,"4,800.00",Protocol Policy Systems Ltd,CR424108,Imd Shared Service,Software,206
http://statistics.data.gov.uk/id/local-authority/12UE,Huntingdonshire District Council,19/01/2017,202256,3107794,5,"1,203.00",Zoho Corporation Private Ltd,CR452714,Imd Shared Service,Software,206
http://statistics.data.gov.uk/id/local-authority/12UE,Huntingdonshire District Council,05/01/2017,201342,407000968,5,"2,400.00",Zurich Municipal,CR477397,Imd Shared Service,Software,206
http://statistics.data.gov.uk/id/local-authority/12UE,Huntingdonshire District Council,12/01/2017,201658,77973,5,970.8,Gladstone Mrm,CR405717,One Leisure Corporate Mgt,Software,206
http://statistics.data.gov.uk/id/local-authority/12UE,Huntingdonshire District Council,19/01/2017,203024,123087,5,"4,723.20",Peterborough City Council,CR000619,Planning M U'S,Software,206
http://statistics.data.gov.uk/id/local-authority/12UE,Huntingdonshire District Council,12/01/2017,201751,6003455563,5,"11,994.00",Capita Business Services Ltd,CR410639,Software Capital,Software,206
http://statistics.data.gov.uk/id/local-authority/12UE,Huntingdonshire District Council,05/01/2017,201235,4280280,1,15.73,Espo,CR006566,One Leisure Huntingdon,Stationery,225
http://statistics.data.gov.uk/id/local-authority/12UE,Huntingdonshire District Council,12/01/2017,202480,16,5,800,I S & N K Johnson,CR422204,Countryside,Subcontractors,777
http://statistics.data.gov.uk/id/local-authority/12UE,Huntingdonshire District Council,26/01/2017,203498,P0009554 S106,5,"6,875.00",Bdw Trading Limited,CR424602,Project Contributions,Subcontractors,777
http://statistics.data.gov.uk/id/local-authority/12UE,Huntingdonshire District Council,12/01/2017,202783,1250643982,5,60,Orange Airtime,CR455799,Cctv Shared Service,Telephone &Mobile Phonecharges,240
http://statistics.data.gov.uk/id/local-authority/12UE,Huntingdonshire District Council,12/01/2017,202783,1250643982,5,12,Orange Airtime,CR455799,Central Services M Us,Telephone &Mobile Phonecharges,240
http://statistics.data.gov.uk/id/local-authority/12UE,Huntingdonshire District Council,19/01/2017,202709,12158,5,"3,300.00",Cambridgeshire Police Authority,CR404325,Domestic Refuse,Telephone &Mobile Phonecharges,240
http://statistics.data.gov.uk/id/local-authority/12UE,Huntingdonshire District Council,12/01/2017,202783,1250643982,5,98.47,Orange Airtime,CR455799,Environmental Management,Telephone &Mobile Phonecharges,240
http://statistics.data.gov.uk/id/local-authority/12UE,Huntingdonshire District Council,12/01/2017,202783,1250643982,5,"1,791.18",Orange Airtime,CR455799,Imd Shared Service,Telephone &Mobile Phonecharges,240
http://statistics.data.gov.uk/id/local-authority/12UE,Huntingdonshire District Council,12/01/2017,202716,1941,5,600,Webaspx Ltd,CR455661,Domestic Refuse,Training,130
http://statistics.data.gov.uk/id/local-authority/12UE,Huntingdonshire District Council,12/01/2017,202773,644/16,5,"1,925.00",City & Guilds Nptc,CR424148,Human Resources,Training,130
http://statistics.data.gov.uk/id/local-authority/12UE,Huntingdonshire District Council,19/01/2017,202301,1.31E+08,5,"1,108.68",C-Way Driver Training,CR423428,Human Resources,Training,130
http://statistics.data.gov.uk/id/local-authority/12UE,Huntingdonshire District Council,19/01/2017,202664,2311,5,360,Gilden Training,CR481057,Human Resources,Training,130
http://statistics.data.gov.uk/id/local-authority/12UE,Huntingdonshire District Council,26/01/2017,202522,112926,5,534,Govnet Communications,CR405771,Human Resources,Training,130
http://statistics.data.gov.uk/id/local-authority/12UE,Huntingdonshire District Council,12/01/2017,202620,A121678,5,"1,314.00",Irrv Services Limited,CR008937,Human Resources,Training,130
http://statistics.data.gov.uk/id/local-authority/12UE,Huntingdonshire District Council,05/01/2017,202238,3TH JANUARY 201,5,549,Miss H C Dawson,CR424149,Human Resources,Training,130
http://statistics.data.gov.uk/id/local-authority/12UE,Huntingdonshire District Council,19/01/2017,203201,REDACTED PERSONAL DATA,5,749,Miss H C Dawson,CR424149,Human Resources,Training,130
http://statistics.data.gov.uk/id/local-authority/12UE,Huntingdonshire District Council,05/01/2017,201466,17824,5,"1,216.73",Pristine Condition,CR482653,Human Resources,Training,130
http://statistics.data.gov.uk/id/local-authority/12UE,Huntingdonshire District Council,19/01/2017,203114,72617,5,900,Progreenweed Control Solutions Ltd,CR424081,Human Resources,Training,130
http://statistics.data.gov.uk/id/local-authority/12UE,Huntingdonshire District Council,26/01/2017,203459,20216,5,"2,154.00",Act Now Training Ltd,CR482297,Imd Shared Service,Training,130
http://statistics.data.gov.uk/id/local-authority/12UE,Huntingdonshire District Council,26/01/2017,203460,20217,5,"2,154.00",Act Now Training Ltd,CR482297,Imd Shared Service,Training,130
http://statistics.data.gov.uk/id/local-authority/12UE,Huntingdonshire District Council,26/01/2017,203461,P631,5,418.8,Act Now Training Ltd,CR482297,Imd Shared Service,Training,130
http://statistics.data.gov.uk/id/local-authority/12UE,Huntingdonshire District Council,19/01/2017,203174,32672,5,338.1,Cintra Ltd,CR028441,Housing Management Units,Translation Services,766
http://statistics.data.gov.uk/id/local-authority/12UE,Huntingdonshire District Council,05/01/2017,606279,9071,5,316.8,Steves Taxis & Private Hire,CR155956,Homelessness Management,Travel Expenses,636
http://statistics.data.gov.uk/id/local-authority/12UE,Huntingdonshire District Council,19/01/2017,203081,6003461002,5,798,Capita Business Services Ltd,CR410639,Software Capital,Travel Expenses,636
http://statistics.data.gov.uk/id/local-authority/12UE,Huntingdonshire District Council,05/01/2017,201628,37028947-0,5,"2,292.00",The F A Bartlett Tree Expert Company,CR424055,Grounds Maintenance,Tree Maintenance,357
http://statistics.data.gov.uk/id/local-authority/12UE,Huntingdonshire District Council,12/01/2017,202462,HDC052,5,"2,069.22",C G Utilities,CR119758,Environmental Management,Utilities Monitoring,782
http://statistics.data.gov.uk/id/local-authority/12UE,Huntingdonshire District Council,19/01/2017,202717,60224127,5,500.87,Aebi Schmidt,CR025706,Street Cleaning,Vehicle Accident Damage,623
http://statistics.data.gov.uk/id/local-authority/12UE,Huntingdonshire District Council,05/01/2017,201552,101150,5,276,Huntingdon Plant Hire,CR000425,Domestic Refuse,Vehicle Cleaning,620
http://statistics.data.gov.uk/id/local-authority/12UE,Huntingdonshire District Council,05/01/2017,201610,1612/02819,5,408,Gullivers Truck Hire Ltd,CR477663,Domestic Refuse,Vehicle Hire,607
http://statistics.data.gov.uk/id/local-authority/12UE,Huntingdonshire District Council,05/01/2017,201609,1612/02820,5,876,Gullivers Truck Hire Ltd,CR477663,Domestic Refuse,Vehicle Hire,607
http://statistics.data.gov.uk/id/local-authority/12UE,Huntingdonshire District Council,12/01/2017,201612,1612/05178,5,408,Gullivers Truck Hire Ltd,CR477663,Domestic Refuse,Vehicle Hire,607
http://statistics.data.gov.uk/id/local-authority/12UE,Huntingdonshire District Council,12/01/2017,201611,1612/05179,5,876,Gullivers Truck Hire Ltd,CR477663,Domestic Refuse,Vehicle Hire,607
http://statistics.data.gov.uk/id/local-authority/12UE,Huntingdonshire District Council,19/01/2017,202677,1612/07727,5,408,Gullivers Truck Hire Ltd,CR477663,Domestic Refuse,Vehicle Hire,607
http://statistics.data.gov.uk/id/local-authority/12UE,Huntingdonshire District Council,19/01/2017,202681,1612/07728,5,876,Gullivers Truck Hire Ltd,CR477663,Domestic Refuse,Vehicle Hire,607
http://statistics.data.gov.uk/id/local-authority/12UE,Huntingdonshire District Council,26/01/2017,202712,10768876,5,"1,776.30",Shb Hire Ltd,CR416566,Domestic Refuse,Vehicle Hire,607
http://statistics.data.gov.uk/id/local-authority/12UE,Huntingdonshire District Council,26/01/2017,202713,10768877,5,864.9,Shb Hire Ltd,CR416566,Grounds Maintenance,Vehicle Hire,607
http://statistics.data.gov.uk/id/local-authority/12UE,Huntingdonshire District Council,26/01/2017,202714,10768878,5,797.11,Shb Hire Ltd,CR416566,Grounds Maintenance,Vehicle Hire,607
http://statistics.data.gov.uk/id/local-authority/12UE,Huntingdonshire District Council,26/01/2017,202715,10768879,5,883.5,Shb Hire Ltd,CR416566,Grounds Maintenance,Vehicle Hire,607
http://statistics.data.gov.uk/id/local-authority/12UE,Huntingdonshire District Council,26/01/2017,202684,192664,5,"1,152.00",Chevin Fleet Solutions,CR477454,Fleet Management,Vehicle Licence,609
http://statistics.data.gov.uk/id/local-authority/12UE,Huntingdonshire District Council,12/01/2017,201648,877957,5,912.92,Ernest Doe & Sons,CR000261,Countryside,Vehicle Maintenance External,619
http://statistics.data.gov.uk/id/local-authority/12UE,Huntingdonshire District Council,12/01/2017,201548,270075I,5,394.2,A C Commercials,CR000141,Domestic Refuse,Vehicle Oil & Lubricants,626
http://statistics.data.gov.uk/id/local-authority/12UE,Huntingdonshire District Council,12/01/2017,201548,270075I,5,52.56,A C Commercials,CR000141,Fleet Management,Vehicle Oil & Lubricants,626
http://statistics.data.gov.uk/id/local-authority/12UE,Huntingdonshire District Council,12/01/2017,201548,270075I,5,604.44,A C Commercials,CR000141,Grounds Maintenance,Vehicle Oil & Lubricants,626
http://statistics.data.gov.uk/id/local-authority/12UE,Huntingdonshire District Council,12/01/2017,201548,270075I,5,919.8,A C Commercials,CR000141,Recycling,Vehicle Oil & Lubricants,626
http://statistics.data.gov.uk/id/local-authority/12UE,Huntingdonshire District Council,12/01/2017,201548,270075I,5,657,A C Commercials,CR000141,Street Cleaning,Vehicle Oil & Lubricants,626
http://statistics.data.gov.uk/id/local-authority/12UE,Huntingdonshire District Council,05/01/2017,201352,54788,5,610.8,Landmark Trading Ltd,CR411433,Arboricultural Team,Vehicle Parts & Fittings,625
http://statistics.data.gov.uk/id/local-authority/12UE,Huntingdonshire District Council,19/01/2017,202651,270837I,5,334.18,A C Commercials,CR000141,Domestic Refuse,Vehicle Parts & Fittings,625
http://statistics.data.gov.uk/id/local-authority/12UE,Huntingdonshire District Council,26/01/2017,202648,270942I,5,319.87,A C Commercials,CR000141,Domestic Refuse,Vehicle Parts & Fittings,625
http://statistics.data.gov.uk/id/local-authority/12UE,Huntingdonshire District Council,12/01/2017,202691,256589,5,288,Autoelec Cambs,CR480035,Domestic Refuse,Vehicle Parts & Fittings,625
http://statistics.data.gov.uk/id/local-authority/12UE,Huntingdonshire District Council,05/01/2017,201300,ZPT120731,5,46.75,C F Parkinson Ltd,CR410442,Domestic Refuse,Vehicle Parts & Fittings,625
http://statistics.data.gov.uk/id/local-authority/12UE,Huntingdonshire District Council,05/01/2017,201605,28524,5,678,Coolair Logan Ltd,CR410942,Domestic Refuse,Vehicle Parts & Fittings,625
http://statistics.data.gov.uk/id/local-authority/12UE,Huntingdonshire District Council,12/01/2017,201607,293710,5,"3,289.44",Dennis Eagle Ltd,CR000200,Domestic Refuse,Vehicle Parts & Fittings,625
http://statistics.data.gov.uk/id/local-authority/12UE,Huntingdonshire District Council,05/01/2017,201570,DE11002852,5,667.09,Dennis Eagle Ltd,CR000200,Domestic Refuse,Vehicle Parts & Fittings,625
http://statistics.data.gov.uk/id/local-authority/12UE,Huntingdonshire District Council,05/01/2017,201571,DE11002853,5,760.08,Dennis Eagle Ltd,CR000200,Domestic Refuse,Vehicle Parts & Fittings,625
http://statistics.data.gov.uk/id/local-authority/12UE,Huntingdonshire District Council,05/01/2017,201594,DE11003491,5,898.93,Dennis Eagle Ltd,CR000200,Domestic Refuse,Vehicle Parts & Fittings,625
http://statistics.data.gov.uk/id/local-authority/12UE,Huntingdonshire District Council,12/01/2017,202302,DE11005164,5,412.28,Dennis Eagle Ltd,CR000200,Domestic Refuse,Vehicle Parts & Fittings,625
http://statistics.data.gov.uk/id/local-authority/12UE,Huntingdonshire District Council,19/01/2017,202478,DE11005504,5,"1,436.74",Dennis Eagle Ltd,CR000200,Domestic Refuse,Vehicle Parts & Fittings,625
http://statistics.data.gov.uk/id/local-authority/12UE,Huntingdonshire District Council,12/01/2017,202479,36618,5,815.7,Magnum Tyres Ltd,CR479195,Domestic Refuse,Vehicle Parts & Fittings,625
http://statistics.data.gov.uk/id/local-authority/12UE,Huntingdonshire District Council,12/01/2017,202567,144337,5,348,Silver Shield Windscreens,CR024745,Domestic Refuse,Vehicle Parts & Fittings,625
http://statistics.data.gov.uk/id/local-authority/12UE,Huntingdonshire District Council,12/01/2017,201506,96335486,5,628.04,Terberg Matec Uk Ltd,CR402183,Domestic Refuse,Vehicle Parts & Fittings,625
http://statistics.data.gov.uk/id/local-authority/12UE,Huntingdonshire District Council,12/01/2017,202691,256589,5,107.34,Autoelec Cambs,CR480035,Fleet Management,Vehicle Parts & Fittings,625
http://statistics.data.gov.uk/id/local-authority/12UE,Huntingdonshire District Council,05/01/2017,201300,ZPT120731,5,6.24,C F Parkinson Ltd,CR410442,Fleet Management,Vehicle Parts & Fittings,625
http://statistics.data.gov.uk/id/local-authority/12UE,Huntingdonshire District Council,05/01/2017,200845,188886,5,414.72,Arthur Ibbett Ltd,CR000430,Grounds Maintenance,Vehicle Parts & Fittings,625
http://statistics.data.gov.uk/id/local-authority/12UE,Huntingdonshire District Council,05/01/2017,201547,188987,5,489.47,Arthur Ibbett Ltd,CR000430,Grounds Maintenance,Vehicle Parts & Fittings,625
http://statistics.data.gov.uk/id/local-authority/12UE,Huntingdonshire District Council,05/01/2017,201300,ZPT120731,5,71.7,C F Parkinson Ltd,CR410442,Grounds Maintenance,Vehicle Parts & Fittings,625
http://statistics.data.gov.uk/id/local-authority/12UE,Huntingdonshire District Council,05/01/2017,201300,ZPT120731,5,109.09,C F Parkinson Ltd,CR410442,Recycling,Vehicle Parts & Fittings,625
http://statistics.data.gov.uk/id/local-authority/12UE,Huntingdonshire District Council,19/01/2017,203007,28457,5,270,Coolair Logan Ltd,CR410942,Recycling,Vehicle Parts & Fittings,625
http://statistics.data.gov.uk/id/local-authority/12UE,Huntingdonshire District Council,12/01/2017,202305,10786,5,546,D B Transport Services,CR405028,Recycling,Vehicle Parts & Fittings,625
http://statistics.data.gov.uk/id/local-authority/12UE,Huntingdonshire District Council,19/01/2017,202474,GRN 45671,5,"2,357.24",Dennis Eagle Ltd,CR000200,Recycling,Vehicle Parts & Fittings,625
http://statistics.data.gov.uk/id/local-authority/12UE,Huntingdonshire District Council,12/01/2017,201308,96335380,5,534.58,Terberg Matec Uk Ltd,CR402183,Recycling,Vehicle Parts & Fittings,625
http://statistics.data.gov.uk/id/local-authority/12UE,Huntingdonshire District Council,05/01/2017,201572,60223425,5,693.89,Aebi Schmidt,CR025706,Street Cleaning,Vehicle Parts & Fittings,625
http://statistics.data.gov.uk/id/local-authority/12UE,Huntingdonshire District Council,19/01/2017,203120,60224046,5,337.03,Aebi Schmidt,CR025706,Street Cleaning,Vehicle Parts & Fittings,625
http://statistics.data.gov.uk/id/local-authority/12UE,Huntingdonshire District Council,19/01/2017,203121,60224062,5,336.72,Aebi Schmidt,CR025706,Street Cleaning,Vehicle Parts & Fittings,625
http://statistics.data.gov.uk/id/local-authority/12UE,Huntingdonshire District Council,05/01/2017,201300,ZPT120731,5,77.93,C F Parkinson Ltd,CR410442,Street Cleaning,Vehicle Parts & Fittings,625
http://statistics.data.gov.uk/id/local-authority/12UE,Huntingdonshire District Council,12/01/2017,202755,36619,5,325.2,Magnum Tyres Ltd,CR479195,Street Cleaning,Vehicle Parts & Fittings,625
http://statistics.data.gov.uk/id/local-authority/12UE,Huntingdonshire District Council,19/01/2017,202308,5892675,5,272.69,Marshall Motor Group Ltd,CR009641,Street Cleaning,Vehicle Parts & Fittings,625
http://statistics.data.gov.uk/id/local-authority/12UE,Huntingdonshire District Council,19/01/2017,202311,58392539,5,290.12,Marshall Motor Group Ltd,CR009641,Street Cleaning,Vehicle Parts & Fittings,625
http://statistics.data.gov.uk/id/local-authority/12UE,Huntingdonshire District Council,19/01/2017,202309,58392577,5,350.6,Marshall Motor Group Ltd,CR009641,Street Cleaning,Vehicle Parts & Fittings,625
http://statistics.data.gov.uk/id/local-authority/12UE,Huntingdonshire District Council,19/01/2017,202754,58807665,5,-350.6,Marshall Motor Group Ltd,CR009641,Street Cleaning,Vehicle Parts & Fittings,625
http://statistics.data.gov.uk/id/local-authority/12UE,Huntingdonshire District Council,12/01/2017,202528,60224162,5,"74,834.00",Aebi Schmidt,CR025706,Vehicles & Plant Capital,Vehicles Purchased,600
http://statistics.data.gov.uk/id/local-authority/12UE,Huntingdonshire District Council,19/01/2017,202527,187137,5,"25,716.89",Aprite Gb T/A West Way Birmingham,CR424045,Vehicles & Plant Capital,Vehicles Purchased,600
http://statistics.data.gov.uk/id/local-authority/12UE,Huntingdonshire District Council,05/01/2017,201082,10345344,5,251.95,Lucozade Ribena Suntory Ltd,CR422660,One Leisure St Neots,Vending Materials,560
http://statistics.data.gov.uk/id/local-authority/12UE,Huntingdonshire District Council,12/01/2017,202607,75807,5,537.77,Snackline Direct Ltd,CR478090,One Leisure St Neots,Vending Materials,560
http://statistics.data.gov.uk/id/local-authority/12UE,Huntingdonshire District Council,05/01/2017,201539,10709236,5,291,Cambridgeshire County Council,CR006678,Grounds Maintenance,Waste Disposal,763
http://statistics.data.gov.uk/id/local-authority/12UE,Huntingdonshire District Council,19/01/2017,202164,SBO1052861,5,260.23,Veolia Es Uk Ltd,CR478889,One Leisure Huntingdon,Waste Disposal,763
http://statistics.data.gov.uk/id/local-authority/12UE,Huntingdonshire District Council,26/01/2017,202166,SBO1052863,5,894.05,Veolia Es Uk Ltd,CR478889,One Leisure St Ives,Waste Disposal,763
http://statistics.data.gov.uk/id/local-authority/12UE,Huntingdonshire District Council,26/01/2017,202168,SBO1052865,5,379.42,Veolia Es Uk Ltd,CR478889,One Leisure St Neots,Waste Disposal,763
http://statistics.data.gov.uk/id/local-authority/12UE,Huntingdonshire District Council,26/01/2017,203371,113415079,5,439,Anglian Water,CR000071,Countryside,Water & Sewerage,432
http://statistics.data.gov.uk/id/local-authority/12UE,Huntingdonshire District Council,05/01/2017,202157,2251647,5,"5,647.51",Anglian Water,CR000071,Housing Services Other,Water & Sewerage,432
http://statistics.data.gov.uk/id/local-authority/12UE,Huntingdonshire District Council,12/01/2017,202655,126877786,5,"1,808.12",Anglian Water,CR000071,One Leisure Huntingdon,Water & Sewerage,432
http://statistics.data.gov.uk/id/local-authority/12UE,Huntingdonshire District Council,05/01/2017,202286,124032665,5,674.03,Anglian Water,CR000071,One Leisure St Neots,Water & Sewerage,432
